Workbook

Sheet الرئيسية

Sheet اساسية
B3: ادخل البيانات أولا | IV3: جدول إمتحان نصف العام
IV4: جدول إمتحان أخر العام
B5: محافظة كفر الشيخ | G5: الفصل الدراسى الاول
B6: مديرية التربية والتعليم | G6: الفصل الدراسى الثانى
B7: إدارة الرياض التعليمية
B8: مدرسة الشهيدين الاعدادية
B9: طه رسول
B10: فاتن بسيونى
B11: الفصل الدراسى الثانى
B12: الصف الاول والثانى الاعدادى
B13: 2014/ 2015 م
B14: أخر العام

Sheet بيانات أساسية2
D1: الصف الثانى الابتدائى | L1: اكتب فى الخلايا ذات اللون الابيض فقط
J2: العدد | K2: =SUM(G5:G44) -> 266
D3: م | E3: اكتب اول رقم جلوس | G3: =SUM(G5:G44) -> 266 | H3: =COUNT(H5:H44) -> 10 | J3: أعلى رقم | K3: =MAX(E5:F44) -> 366 | O3: =COUNT(K5:K297) -> 266 | P3: =COUNTA(L5:L297) -> 266
E4: من | F4: إلى | G4: عدد اللجنة | H4: اللجنة | J4: م | K4: رقم الجلوس | L4: الاسم | M4: النوع | O4: اللجنة | P4: نهاية اللجنة
B5: مقيد | C5: =COUNTA(L5:L297) -> 266 | D5: =IF(E5="","",COUNT($E$5:E5)) -> 1 | E5: 101 | F5: =IF(G5="","",E5+G5-1) -> 128 | G5: 28 | H5: =IF(E5="","",COUNT($E$5:E5)) -> 1 | J5: 1 | K5: =$E$5 -> 101 | L5: ابراهيم عادل عبدالعال عبدالمجيد | M5: ذكر | N5: =MATCH($m5,MySortList,0) | O5: =IF(K5="","",VLOOKUP(K5,جلوس,4)) -> 1 | P5: =IF(O5=O6,"","نهاية اللجنة") -> 
B6: موزع | C6: =SUM(G5:G44) -> 266 | D6: =IF(E6="","",COUNT($E$5:E6)) -> 2 | E6: =IF(G6="","",F5+1) -> 129 | F6: =IF(G6="","",E6+G6-1) -> 155 | G6: 27 | H6: =IF(E6="","",COUNT($E$5:E6)) -> 2 | J6: =IF(J5="","",IF(J5+1>$K$2,"",J5+1)) -> 2 | K6: =IF(K5="","",IF(K5+1>$K$3,"",K5+1)) -> 102 | L6: ابراهيم عرفه ابراهيم حسنين | M6: ذكر | N6: =MATCH($m5,MySortList,0) | O6: 1 | P6: =IF(O6=O7,"","نهاية اللجنة") -> 
B7: متبقى | C7: =C5-C6 -> 0 | D7: =IF(E7="","",COUNT($E$5:E7)) -> 3 | E7: =IF(G7="","",F6+1) -> 156 | F7: 183 | G7: 28 | H7: =IF(E7="","",COUNT($E$5:E7)) -> 3 | J7: =IF(J6="","",IF(J6+1>$K$2,"",J6+1)) -> 3 | K7: =IF(K6="","",IF(K6+1>$K$3,"",K6+1)) -> 103 | L7: احمد جمعه حسن سعد | M7: ذكر | N7: =MATCH($m5,MySortList,0) | O7: 1
D8: =IF(E8="","",COUNT($E$5:E8)) -> 4 | E8: 184 | F8: 208 | G8: 25 | H8: =IF(E8="","",COUNT($E$5:E8)) -> 4 | J8: 4 | K8: 104 | L8: احمد جميل مصطفى محمد | M8: ذكر | N8: =MATCH($m5,MySortList,0) | O8: 1
C9: ذكر | D9: =IF(E9="","",COUNT($E$5:E9)) -> 5 | E9: 209 | F9: 235 | G9: 27 | H9: =IF(E9="","",COUNT($E$5:E9)) -> 5 | J9: 5 | K9: 105 | L9: احمد حماده محمد عبدالمجيد | M9: ذكر | N9: =MATCH($m5,MySortList,0) | O9: 1
C10: انثى | D10: =IF(E10="","",COUNT($E$5:E10)) -> 6 | E10: 236 | F10: 263 | G10: 28 | H10: =IF(E10="","",COUNT($E$5:E10)) -> 6 | J10: 6 | K10: 106 | L10: احمد سعيد محمد ابراهيم | M10: ذكر | N10: =MATCH($m5,MySortList,0) | O10: 1
D11: =IF(E11="","",COUNT($E$5:E11)) -> 7 | E11: 264 | F11: 290 | G11: 27 | H11: =IF(E11="","",COUNT($E$5:E11)) -> 7 | J11: 7 | K11: 107 | L11: احمد صلاح احمد احمد | M11: ذكر | N11: =MATCH($m5,MySortList,0) | O11: 1
D12: =IF(E12="","",COUNT($E$5:E12)) -> 8 | E12: 291 | F12: 318 | G12: 28 | H12: =IF(E12="","",COUNT($E$5:E12)) -> 8 | J12: 8 | K12: 108 | L12: احمد عادل عيسى حسن | M12: ذكر | N12: =MATCH($m5,MySortList,0) | O12: 1
D13: =IF(E13="","",COUNT($E$5:E13)) -> 9 | E13: 319 | F13: 343 | G13: 25 | H13: =IF(E13="","",COUNT($E$5:E13)) -> 9 | J13: 9 | K13: 109 | L13: احمد عزت محمد عبدالبديع | M13: ذكر | N13: =MATCH($m5,MySortList,0) | O13: 1
D14: =IF(E14="","",COUNT($E$5:E14)) -> 10 | E14: 344 | F14: 366 | G14: 23 | H14: =IF(E14="","",COUNT($E$5:E14)) -> 10 | J14: 10 | K14: 110 | L14: احمد عطيه محمود ابراهيم | M14: ذكر | N14: =MATCH($m5,MySortList,0) | O14: 1
D15: =IF(E15="","",COUNT($E$5:E15)) ->  | H15: =IF(E15="","",COUNT($E$5:E15)) ->  | J15: 11 | K15: 111 | L15: احمد على احمد محمد | M15: ذكر | N15: =MATCH($m5,MySortList,0) | O15: 1
D16: =IF(E16="","",COUNT($E$5:E16)) ->  | H16: =IF(E16="","",COUNT($E$5:E16)) ->  | J16: 12 | K16: 112 | L16: احمد عمادالدين احمد محمد بيومى | M16: ذكر | N16: =MATCH($m5,MySortList,0) | O16: 1
D17: =IF(E17="","",COUNT($E$5:E17)) ->  | H17: =IF(E17="","",COUNT($E$5:E17)) ->  | J17: 13 | K17: 113 | L17: احمد ماهر صبحى طلبه | M17: ذكر | N17: =MATCH($m5,MySortList,0) | O17: 1
D18: =IF(E18="","",COUNT($E$5:E18)) ->  | H18: =IF(E18="","",COUNT($E$5:E18)) ->  | J18: 14 | K18: 114 | L18: احمد مجدى محمد هنداوي | M18: ذكر | N18: =MATCH($m5,MySortList,0) | O18: 1
D19: =IF(E19="","",COUNT($E$5:E19)) ->  | H19: =IF(E19="","",COUNT($E$5:E19)) ->  | J19: 15 | K19: 115 | L19: احمد محمد ابراهيم يوسف | M19: ذكر | N19: =MATCH($m5,MySortList,0) | O19: 1
D20: =IF(E20="","",COUNT($E$5:E20)) ->  | H20: =IF(E20="","",COUNT($E$5:E20)) ->  | J20: 16 | K20: 116 | L20: احمد محمد السيد احمد | M20: ذكر | N20: =MATCH($m5,MySortList,0) | O20: 1
D21: =IF(E21="","",COUNT($E$5:E21)) ->  | H21: =IF(E21="","",COUNT($E$5:E21)) ->  | J21: 17 | K21: 117 | L21: احمد مصطفى عاطف ابراهيم | M21: ذكر | N21: =MATCH($m5,MySortList,0) | O21: 1
D22: =IF(E22="","",COUNT($E$5:E22)) ->  | H22: =IF(E22="","",COUNT($E$5:E22)) ->  | J22: 18 | K22: 118 | L22: احمد ناصر محمد خميس | M22: ذكر | N22: =MATCH($m5,MySortList,0) | O22: 1
D23: =IF(E23="","",COUNT($E$5:E23)) ->  | H23: =IF(E23="","",COUNT($E$5:E23)) ->  | J23: 19 | K23: 119 | L23: احمد هانى محمد السيد | M23: ذكر | N23: =MATCH($m5,MySortList,0) | O23: 1
D24: =IF(E24="","",COUNT($E$5:E24)) ->  | H24: =IF(E24="","",COUNT($E$5:E24)) ->  | J24: 20 | K24: 120 | L24: احمد هشام جمعه غازي | M24: ذكر | N24: =MATCH($m5,MySortList,0) | O24: 1
D25: =IF(E25="","",COUNT($E$5:E25)) ->  | H25: =IF(E25="","",COUNT($E$5:E25)) ->  | J25: 21 | K25: 121 | L25: اسامه ابراهيم عبدالله سليمان | M25: ذكر | N25: =MATCH($m5,MySortList,0) | O25: 1
D26: =IF(E26="","",COUNT($E$5:E26)) ->  | H26: =IF(E26="","",COUNT($E$5:E26)) ->  | J26: 22 | K26: 122 | L26: اسامه حماده احمد المغازي | M26: ذكر | N26: =MATCH($m5,MySortList,0) | O26: 1
D27: =IF(E27="","",COUNT($E$5:E27)) ->  | H27: =IF(E27="","",COUNT($E$5:E27)) ->  | J27: 23 | K27: 123 | L27: اسر محمد عيد عبدالقوي | M27: ذكر | N27: =MATCH($m5,MySortList,0) | O27: 1
D28: =IF(E28="","",COUNT($E$5:E28)) ->  | H28: =IF(E28="","",COUNT($E$5:E28)) ->  | J28: 24 | K28: 124 | L28: السيد اسماعيل جلال اسماعيل | M28: ذكر | N28: =MATCH($m5,MySortList,0) | O28: 1
D29: =IF(E29="","",COUNT($E$5:E29)) ->  | H29: =IF(E29="","",COUNT($E$5:E29)) ->  | J29: 25 | K29: 125 | L29: السيد وائل السيد عبدالفتاح | M29: ذكر | N29: =MATCH($m5,MySortList,0) | O29: 1
D30: =IF(E30="","",COUNT($E$5:E30)) ->  | H30: =IF(E30="","",COUNT($E$5:E30)) ->  | J30: 26 | K30: 126 | L30: انس جمال عبدالعظيم احمد | M30: ذكر | N30: =MATCH($m5,MySortList,0) | O30: 1
D31: =IF(E31="","",COUNT($E$5:E31)) ->  | H31: =IF(E31="","",COUNT($E$5:E31)) ->  | J31: 27 | K31: 127 | L31: ايمن خالد عبداللطيف حامد هلهل | M31: ذكر | N31: =MATCH($m5,MySortList,0) | O31: 1
D32: =IF(E32="","",COUNT($E$5:E32)) ->  | H32: =IF(E32="","",COUNT($E$5:E32)) ->  | J32: 28 | K32: 128 | L32: حامد ممدوح احمد السيد | M32: ذكر | N32: =MATCH($m5,MySortList,0) | O32: 1 | P32: نهاية اللجنة
D33: =IF(E33="","",COUNT($E$5:E33)) ->  | H33: =IF(E33="","",COUNT($E$5:E33)) ->  | J33: 29 | K33: 129 | L33: حسام حسن طلبه يوسف | M33: ذكر | N33: =MATCH($m5,MySortList,0) | O33: 2
D34: =IF(E34="","",COUNT($E$5:E34)) ->  | H34: =IF(E34="","",COUNT($E$5:E34)) ->  | J34: 30 | K34: 130 | L34: حسن عبدالرحمن محمد احمد | M34: ذكر | N34: =MATCH($m5,MySortList,0) | O34: 2
D35: =IF(E35="","",COUNT($E$5:E35)) ->  | H35: =IF(E35="","",COUNT($E$5:E35)) ->  | J35: 31 | K35: 131 | L35: حسن عماد خضر احمد | M35: ذكر | N35: =MATCH($m5,MySortList,0) | O35: 2
D36: =IF(E36="","",COUNT($E$5:E36)) ->  | H36: =IF(E36="","",COUNT($E$5:E36)) ->  | J36: 32 | K36: 132 | L36: حسن وليد حسن احمد | M36: ذكر | N36: =MATCH($m5,MySortList,0) | O36: 2
D37: =IF(E37="","",COUNT($E$5:E37)) ->  | H37: =IF(E37="","",COUNT($E$5:E37)) ->  | J37: 33 | K37: 133 | L37: خالد رمضان رشدى عبدالحميد | M37: ذكر | N37: =MATCH($m5,MySortList,0) | O37: 2
D38: =IF(E38="","",COUNT($E$5:E38)) ->  | H38: =IF(E38="","",COUNT($E$5:E38)) ->  | J38: 34 | K38: 134 | L38: زياد احمد رمضان درباله | M38: ذكر | N38: =MATCH($m5,MySortList,0) | O38: 2
D39: =IF(E39="","",COUNT($E$5:E39)) ->  | H39: =IF(E39="","",COUNT($E$5:E39)) ->  | J39: 35 | K39: 135 | L39: زياد احمد محمد ابراهيم | M39: ذكر | N39: =MATCH($m5,MySortList,0) | O39: 2
D40: =IF(E40="","",COUNT($E$5:E40)) ->  | H40: =IF(E40="","",COUNT($E$5:E40)) ->  | J40: 36 | K40: 136 | L40: زياد السيد احمد احمد | M40: ذكر | N40: =MATCH($m5,MySortList,0) | O40: 2
D41: =IF(E41="","",COUNT($E$5:E41)) ->  | H41: =IF(E41="","",COUNT($E$5:E41)) ->  | J41: 37 | K41: 137 | L41: زياد عصام احمد السيد مجاهد | M41: ذكر | N41: =MATCH($m5,MySortList,0) | O41: 2
D42: =IF(E42="","",COUNT($E$5:E42)) ->  | H42: =IF(E42="","",COUNT($E$5:E42)) ->  | J42: 38 | K42: 138 | L42: زياد عصام الدين عبدالمجيد حسن | M42: ذكر | N42: =MATCH($m5,MySortList,0) | O42: 2
D43: =IF(E43="","",COUNT($E$5:E43)) ->  | H43: =IF(E43="","",COUNT($E$5:E43)) ->  | J43: 39 | K43: 139 | L43: سيف احمد ماهر محمد | M43: ذكر | N43: =MATCH($m5,MySortList,0) | O43: 2
D44: =IF(E44="","",COUNT($E$5:E44)) ->  | H44: =IF(E44="","",COUNT($E$5:E44)) ->  | J44: 40 | K44: 140 | L44: سيف السيد يحى السيد | M44: ذكر | N44: =MATCH($m5,MySortList,0) | O44: 2
J45: 41 | K45: 141 | L45: شادى محمد محمود بهنسي | M45: ذكر | N45: =MATCH($m5,MySortList,0) | O45: 2
J46: 42 | K46: 142 | L46: عبدالرحمن احمد السيد احمد | M46: ذكر | N46: =MATCH($m5,MySortList,0) | O46: 2
J47: 43 | K47: 143 | L47: عبدالرحمن خالد منصور محمد | M47: ذكر | N47: =MATCH($m5,MySortList,0) | O47: 2
J48: 44 | K48: 144 | L48: عبدالرحمن رمضان احمد شراكي | M48: ذكر | N48: =MATCH($m5,MySortList,0) | O48: 2
J49: 45 | K49: 145 | L49: عبدالرحمن عاصم عبدالمحسن حسن | M49: ذكر | N49: =MATCH($m5,MySortList,0) | O49: 2
J50: 46 | K50: 146 | L50: عبدالرحمن عمرو فوزى توفيق | M50: ذكر | N50: =MATCH($m5,MySortList,0) | O50: 2
J51: 47 | K51: 147 | L51: عبدالرحمن فتحى حسين بسيونى | M51: ذكر | N51: =MATCH($m5,MySortList,0) | O51: 2
J52: 48 | K52: 148 | L52: عبدالرحمن محمد عبدالعزيز محمد | M52: ذكر | N52: =MATCH($m5,MySortList,0) | O52: 2
J53: 49 | K53: 149 | L53: عبدالرحمن نهاد السعيد محمد | M53: ذكر | N53: =MATCH($m5,MySortList,0) | O53: 2
J54: 50 | K54: 150 | L54: عبدالرحمن هانى عيد علي | M54: ذكر | N54: =MATCH($m5,MySortList,0) | O54: 2
J55: 51 | K55: 151 | L55: عبدالفتاح عماد عبدالفتاح ابراهيم | M55: ذكر | N55: =MATCH($m5,MySortList,0) | O55: 2
J56: 52 | K56: 152 | L56: عبدالله كامل عبدالله ابراهيم | M56: ذكر | N56: =MATCH($m5,MySortList,0) | O56: 2
J57: 53 | K57: 153 | L57: عبدالله محمد عبدالمنعم عبدالعال | M57: ذكر | N57: =MATCH($m5,MySortList,0) | O57: 2
J58: 54 | K58: 154 | L58: عبدالله مصطفى السيد سيد احمد | M58: ذكر | N58: =MATCH($m5,MySortList,0) | O58: 2
J59: 55 | K59: 155 | L59: عبدالله يسرى عوض احمد | M59: ذكر | N59: =MATCH($m5,MySortList,0) | O59: 2 | P59: نهاية اللجنة
J60: 56 | K60: 156 | L60: علاء صبرى عبدالحميد عبدالحميد | M60: ذكر | N60: =MATCH($m5,MySortList,0) | O60: 3
J61: 57 | K61: 157 | L61: عمار محمد محمود عبدالواحد | M61: ذكر | N61: =MATCH($m5,MySortList,0) | O61: 3
J62: 58 | K62: 158 | L62: عمر اشرف السيد بدير | M62: ذكر | N62: =MATCH($m5,MySortList,0) | O62: 3
J63: 59 | K63: 159 | L63: عمر السيد محمد علي | M63: ذكر | N63: =MATCH($m5,MySortList,0) | O63: 3
J64: 60 | K64: 160 | L64: عمر رفيق السيد ابراهيم | M64: ذكر | N64: =MATCH($m5,MySortList,0) | O64: 3
J65: 61 | K65: 161 | L65: عمر عبدالفتاح جمعه مصطفى | M65: ذكر | N65: =MATCH($m5,MySortList,0) | O65: 3
J66: 62 | K66: 162 | L66: عمر محمد فتح الله دومه | M66: ذكر | N66: =MATCH($m5,MySortList,0) | O66: 3
J67: 63 | K67: 163 | L67: عمر محمد فزاع عبد المجيد | M67: ذكر | N67: =MATCH($m5,MySortList,0) | O67: 3
J68: 64 | K68: 164 | L68: فارس رافت كمال محمود | M68: ذكر | N68: =MATCH($m5,MySortList,0) | O68: 3
J69: 65 | K69: 165 | L69: فؤاد محمد علاء الدين عبدالمنعم | M69: ذكر | N69: =MATCH($m5,MySortList,0) | O69: =IF(K69="","",VLOOKUP(K69,جلوس,4)) -> 3
J70: 66 | K70: 166 | L70: كريم رامى ابراهيم عطيه | M70: ذكر | N70: =MATCH($m5,MySortList,0) | O70: 3 | P70: =IF(O70=O71,"","نهاية اللجنة") -> 
J71: =IF(J70="","",IF(J70+1>$K$2,"",J70+1)) -> 67 | K71: =IF(K70="","",IF(K70+1>$K$3,"",K70+1)) -> 167 | L71: كريم محمد رفاعى محمد | M71: ذكر | N71: =MATCH($m5,MySortList,0) | O71: 3
J72: 68 | K72: 168 | L72: مازن محمد السعيد محمد الشامى | M72: ذكر | N72: =MATCH($m5,MySortList,0) | O72: 3
J73: 69 | K73: 169 | L73: محمد ابراهيم سالم عبدالمجيد | M73: ذكر | N73: =MATCH($m5,MySortList,0) | O73: 3
J74: 70 | K74: 170 | L74: محمد ابراهيم محمد سليمان | M74: ذكر | N74: =MATCH($m5,MySortList,0) | O74: 3
J75: 71 | K75: 171 | L75: محمد احمد السيد عبدالوهاب | M75: ذكر | N75: =MATCH($m5,MySortList,0) | O75: 3
J76: 72 | K76: 172 | L76: محمد احمد رشدى عبدالعزيز | M76: ذكر | N76: =MATCH($m5,MySortList,0) | O76: 3
J77: 73 | K77: 173 | L77: محمد احمد محمد عبدالعزيز | M77: ذكر | N77: =MATCH($m5,MySortList,0) | O77: 3
J78: 74 | K78: 174 | L78: محمد انور عبدالعزيز محمد | M78: ذكر | N78: =MATCH($m5,MySortList,0) | O78: 3
J79: 75 | K79: 175 | L79: محمد ايهاب جمال قطب | M79: ذكر | N79: =MATCH($m5,MySortList,0) | O79: 3
J80: 76 | K80: 176 | L80: محمد جمال عيسى علي | M80: ذكر | N80: =MATCH($m5,MySortList,0) | O80: 3
J81: 77 | K81: 177 | L81: محمد حاتم جمال عبدالسلام | M81: ذكر | N81: =MATCH($m5,MySortList,0) | O81: 3
J82: 78 | K82: 178 | L82: محمد رفعت على عبدالسلام | M82: ذكر | N82: =MATCH($m5,MySortList,0) | O82: 3
J83: 79 | K83: 179 | L83: محمد سالم محمد احمد | M83: ذكر | N83: =MATCH($m5,MySortList,0) | O83: 3
J84: 80 | K84: 180 | L84: محمد سامح حامد ابراهيم | M84: ذكر | N84: =MATCH($m5,MySortList,0) | O84: 3
J85: 81 | K85: 181 | L85: محمد سمير جمعه غازي | M85: ذكر | N85: =MATCH($m5,MySortList,0) | O85: 3
J86: 82 | K86: 182 | L86: محمد صلاح محمد ضباب | M86: ذكر | N86: =MATCH($m5,MySortList,0) | O86: 3
J87: 83 | K87: 183 | L87: محمد طارق فتحى محمد | M87: ذكر | N87: =MATCH($m5,MySortList,0) | O87: 3 | P87: نهاية اللجنة
J88: 84 | K88: 184 | L88: محمد عادل محمود عبدالله | M88: ذكر | N88: =MATCH($m5,MySortList,0) | O88: 4
J89: 85 | K89: 185 | L89: محمد عزت مصطفى محمد | M89: ذكر | N89: =MATCH($m5,MySortList,0) | O89: 4
J90: 86 | K90: 186 | L90: محمد عصام الدين سميح عبدالرحمن | M90: ذكر | N90: =MATCH($m5,MySortList,0) | O90: 4
J91: 87 | K91: 187 | L91: محمد عطيه عبدالرحمن محمد | M91: ذكر | N91: =MATCH($m5,MySortList,0) | O91: 4
J92: 88 | K92: 188 | L92: محمد فيصل السيد سالم | M92: ذكر | N92: =MATCH($m5,MySortList,0) | O92: 4
J93: 89 | K93: 189 | L93: محمد مجدى صبحى محمد | M93: ذكر | N93: =MATCH($m5,MySortList,0) | O93: 4
J94: 90 | K94: 190 | L94: محمد محمود ثابت علي | M94: ذكر | N94: =MATCH($m5,MySortList,0) | O94: 4
J95: 91 | K95: 191 | L95: محمد مسعد السيد عبدالجواد | M95: ذكر | N95: =MATCH($m5,MySortList,0) | O95: 4
J96: 92 | K96: 192 | L96: محمد مصطفى حسين علي | M96: ذكر | N96: =MATCH($m5,MySortList,0) | O96: 4
J97: 93 | K97: 193 | L97: محمد موهوب عبدالمنعم عبدالرحيم | M97: ذكر | N97: =MATCH($m5,MySortList,0) | O97: 4
J98: 94 | K98: 194 | L98: محمد وائل محمد عبدالفتاح | M98: ذكر | N98: =MATCH($m5,MySortList,0) | O98: 4
J99: 95 | K99: 195 | L99: محمود ابراهيم على عبدالحميد | M99: ذكر | N99: =MATCH($m5,MySortList,0) | O99: 4
J100: 96 | K100: 196 | L100: محمود احمد السيد اسماعيل | M100: ذكر | N100: =MATCH($m5,MySortList,0) | O100: 4
J101: 97 | K101: 197 | L101: محمود حماده احمد محمد | M101: ذكر | N101: =MATCH($m5,MySortList,0) | O101: 4
J102: 98 | K102: 198 | L102: محمود عبدالحميد عبدالله | M102: ذكر | N102: =MATCH($m5,MySortList,0) | O102: 4
J103: 99 | K103: 199 | L103: محمود فريد محمود موسي | M103: ذكر | N103: =MATCH($m5,MySortList,0) | O103: 4
J104: 100 | K104: 200 | L104: محمود محمد السعيد السعيد موسى | M104: ذكر | N104: =MATCH($m5,MySortList,0) | O104: 4
J105: 101 | K105: 201 | L105: محمود محمد سعد ابوالمكارم | M105: ذكر | N105: =MATCH($m5,MySortList,0) | O105: 4
J106: 102 | K106: 202 | L106: مصطفى صبحى مصطفى حسن | M106: ذكر | N106: =MATCH($m5,MySortList,0) | O106: 4
J107: 103 | K107: 203 | L107: مصطفى صبرى مصطفى بيومي | M107: ذكر | N107: =MATCH($m5,MySortList,0) | O107: 4
J108: 104 | K108: 204 | L108: مصعب عبدالله عبدالحميد علي | M108: ذكر | N108: =MATCH($m5,MySortList,0) | O108: 4
J109: 105 | K109: 205 | L109: معاذ ماهر السيد محمد | M109: ذكر | N109: =MATCH($m5,MySortList,0) | O109: 4
J110: 106 | K110: 206 | L110: معاذ محمد محمد محمد | M110: ذكر | N110: =MATCH($m5,MySortList,0) | O110: 4
J111: 107 | K111: 207 | L111: مهند محمد صبحى مصطفي | M111: ذكر | N111: =MATCH($m5,MySortList,0) | O111: 4
J112: 108 | K112: 208 | L112: مينا جورج ميخائيل اسعد | M112: ذكر | N112: =MATCH($m5,MySortList,0) | O112: 4 | P112: نهاية اللجنة
J113: 109 | K113: 209 | L113: مينا حبيب سعد عوض | M113: ذكر | N113: =MATCH($m5,MySortList,0) | O113: 5
J114: 110 | K114: 210 | L114: هشام السعيد ابراهيم عثمان | M114: ذكر | N114: =MATCH($m5,MySortList,0) | O114: 5
J115: 111 | K115: 211 | L115: وائل وليد عبدالقادر موسي | M115: ذكر | N115: =MATCH($m5,MySortList,0) | O115: 5
J116: 112 | K116: 212 | L116: يحى السعيد يحى طولان | M116: ذكر | N116: =MATCH($m5,MySortList,0) | O116: 5
J117: 113 | K117: 213 | L117: يوسف احمد ابراهيم محمد | M117: ذكر | N117: =MATCH($m5,MySortList,0) | O117: 5
J118: 114 | K118: 214 | L118: يوسف ايهاب فرج مرسي | M118: ذكر | N118: =MATCH($m5,MySortList,0) | O118: 5
J119: 115 | K119: 215 | L119: يوسف طارق محمد عمر | M119: ذكر | N119: =MATCH($m5,MySortList,0) | O119: 5
J120: 116 | K120: 216 | L120: يوسف عبدالخالق عبدالعاطى | M120: ذكر | N120: =MATCH($m5,MySortList,0) | O120: 5
J121: 117 | K121: 217 | L121: يوسف فتحى الشوادفى حسانين | M121: ذكر | N121: =MATCH($m5,MySortList,0) | O121: 5
J122: 118 | K122: 218 | L122: يوسف محمد حسن حسين | M122: ذكر | N122: =MATCH($m5,MySortList,0) | O122: 5
J123: 119 | K123: 219 | L123: يوسف محمد مصطفى السباعي | M123: ذكر | N123: =MATCH($m5,MySortList,0) | O123: 5
J124: 120 | K124: 220 | L124: يوسف هانى سعد فرج | M124: ذكر | N124: =MATCH($m5,MySortList,0) | O124: 5
J125: 121 | K125: 221 | L125: يوسف هانى فوزى طه | M125: ذكر | N125: =MATCH($m5,MySortList,0) | O125: 5
J126: 122 | K126: 222 | L126: احلام احمد فهمى احمد | M126: انثى | N126: =MATCH($m5,MySortList,0) | O126: 5
J127: 123 | K127: 223 | L127: اسراء ابراهيم عبدالمجيد احمد | M127: انثى | N127: =MATCH($m5,MySortList,0) | O127: 5
J128: 124 | K128: 224 | L128: اسراء احمد مجدى عبدالعزيز | M128: انثى | N128: =MATCH($m5,MySortList,0) | O128: 5
J129: 125 | K129: 225 | L129: اسراء رضا عبدالونيس عبدالله | M129: انثى | N129: =MATCH($m5,MySortList,0) | O129: 5
J130: 126 | K130: 226 | L130: اسراء عبدالحميد عيسى عبدالحميد | M130: انثى | N130: =MATCH($m5,MySortList,0) | O130: 5
J131: 127 | K131: 227 | L131: اسماء ابراهيم محمد ابراهيم | M131: انثى | N131: =MATCH($m5,MySortList,0) | O131: 5
J132: 128 | K132: 228 | L132: اسماء رضا عبدالمعبود عبداللطيف | M132: انثى | N132: =MATCH($m5,MySortList,0) | O132: 5
J133: 129 | K133: 229 | L133: اسماء سامى صابر خطاب | M133: انثى | N133: =MATCH($m5,MySortList,0) | O133: =IF(K133="","",VLOOKUP(K133,جلوس,4)) -> 5
J134: 130 | K134: 230 | L134: اسماء سعد السيد محمد | M134: انثى | N134: =MATCH($m5,MySortList,0) | O134: 5 | P134: =IF(O134=O135,"","نهاية اللجنة") -> 
J135: =IF(J134="","",IF(J134+1>$K$2,"",J134+1)) -> 131 | K135: =IF(K134="","",IF(K134+1>$K$3,"",K134+1)) -> 231 | L135: اسماء سعد محمد قطب | M135: انثى | N135: =MATCH($m5,MySortList,0) | O135: 5
J136: 132 | K136: 232 | L136: اسماء سماحه احمد ابوالفتوح | M136: انثى | N136: =MATCH($m5,MySortList,0) | O136: 5
J137: 133 | K137: 233 | L137: اسماء محمد على محمد | M137: انثى | N137: =MATCH($m5,MySortList,0) | O137: 5
J138: 134 | K138: 234 | L138: اسماء منصور على احمد | M138: انثى | N138: =MATCH($m5,MySortList,0) | O138: 5
J139: 135 | K139: 235 | L139: الاء احمد يوسف محمد عمار | M139: انثى | N139: =MATCH($m5,MySortList,0) | O139: 5 | P139: نهاية اللجنة
J140: 136 | K140: 236 | L140: الاء فتوح زايد حمد | M140: انثى | N140: =MATCH($m5,MySortList,0) | O140: 6
J141: 137 | K141: 237 | L141: الاء مدحت عبدالعليم الشوادفي | M141: انثى | N141: =MATCH($m5,MySortList,0) | O141: 6
J142: 138 | K142: 238 | L142: الاء منير مبروك علي | M142: انثى | N142: =MATCH($m5,MySortList,0) | O142: 6
J143: 139 | K143: 239 | L143: امانى كامل خليل السيد | M143: انثى | N143: =MATCH($m5,MySortList,0) | O143: 6
J144: 140 | K144: 240 | L144: امل حسين عبدالمولى حسين | M144: انثى | N144: =MATCH($m5,MySortList,0) | O144: 6
J145: 141 | K145: 241 | L145: امل رزق رزق موسي | M145: انثى | N145: =MATCH($m5,MySortList,0) | O145: 6
J146: 142 | K146: 242 | L146: امل رضا عبدالمعبود عبداللطيف | M146: انثى | N146: =MATCH($m5,MySortList,0) | O146: 6
J147: 143 | K147: 243 | L147: امنيه السيد حمدان محمد | M147: انثى | N147: =MATCH($m5,MySortList,0) | O147: 6
J148: 144 | K148: 244 | L148: امنيه موافى احمد الموافي | M148: انثى | N148: =MATCH($m5,MySortList,0) | O148: 6
J149: 145 | K149: 245 | L149: اميره علاء عيد عبدالفتاح | M149: انثى | N149: =MATCH($m5,MySortList,0) | O149: 6
J150: 146 | K150: 246 | L150: امينه محمد عبدالفتاح عبدالرحمن | M150: انثى | N150: =MATCH($m5,MySortList,0) | O150: 6
J151: 147 | K151: 247 | L151: ايمان شحاته احمد شحاته | M151: انثى | N151: =MATCH($m5,MySortList,0) | O151: 6
J152: 148 | K152: 248 | L152: ايمان علاء الدين مرسى محمود | M152: انثى | N152: =MATCH($m5,MySortList,0) | O152: 6
J153: 149 | K153: 249 | L153: ايه ابراهيم عبدالعزيز محمد | M153: انثى | N153: =MATCH($m5,MySortList,0) | O153: 6
J154: 150 | K154: 250 | L154: ايه انور لطفى عبدالفتاح | M154: انثى | N154: =MATCH($m5,MySortList,0) | O154: 6
J155: 151 | K155: 251 | L155: ايه على سيد احمد | M155: انثى | N155: =MATCH($m5,MySortList,0) | O155: 6
J156: 152 | K156: 252 | L156: ايه محمد ابراهيم فرحات | M156: انثى | N156: =MATCH($m5,MySortList,0) | O156: 6
J157: 153 | K157: 253 | L157: ايه محمد راشد مرسي | M157: انثى | N157: =MATCH($m5,MySortList,0) | O157: 6
J158: 154 | K158: 254 | L158: ايه محمد سليمان دشيش | M158: انثى | N158: =MATCH($m5,MySortList,0) | O158: 6
J159: 155 | K159: 255 | L159: بسمله عبدالوهاب محمد عبدالوهاب | M159: انثى | N159: =MATCH($m5,MySortList,0) | O159: 6
J160: 156 | K160: 256 | L160: بسمله عصام المتولى عبدالعظيم | M160: انثى | N160: =MATCH($m5,MySortList,0) | O160: 6
J161: 157 | K161: 257 | L161: بسمله علاء الدين محمد عبدالغفار | M161: انثى | N161: =MATCH($m5,MySortList,0) | O161: 6
J162: 158 | K162: 258 | L162: بسمله محمد السيد عبدالله | M162: انثى | N162: =MATCH($m5,MySortList,0) | O162: 6
J163: 159 | K163: 259 | L163: ثريا انور محمد سليمان | M163: انثى | N163: =MATCH($m5,MySortList,0) | O163: 6
J164: 160 | K164: 260 | L164: جنان احمد محمد عبدالحميد الشهاوى | M164: انثى | N164: =MATCH($m5,MySortList,0) | O164: 6
J165: 161 | K165: 261 | L165: حبيبه اشرف محمد محمد | M165: انثى | N165: =MATCH($m5,MySortList,0) | O165: 6
J166: 162 | K166: 262 | L166: حبيبه جمعه عبدالقادر محمد شعلان | M166: انثى | N166: =MATCH($m5,MySortList,0) | O166: 6
J167: 163 | K167: 263 | L167: حبيبه خالد عبدالحميد عبدالعزيز | M167: انثى | N167: =MATCH($m5,MySortList,0) | O167: 6 | P167: نهاية اللجنة
J168: 164 | K168: 264 | L168: حبيبه سلامه محمد مرسي | M168: انثى | N168: =MATCH($m5,MySortList,0) | O168: 7
J169: 165 | K169: 265 | L169: حبيبه عادل محمد زكريا | M169: انثى | N169: =MATCH($m5,MySortList,0) | O169: 7
J170: 166 | K170: 266 | L170: حبيبه عادل مصطفى بيومى | M170: انثى | N170: =MATCH($m5,MySortList,0) | O170: 7
J171: 167 | K171: 267 | L171: حبيبه فتحى الشوادفى حسانين | M171: انثى | N171: =MATCH($m5,MySortList,0) | O171: 7
J172: 168 | K172: 268 | L172: حبيبه محرم بسطويسى بيلي | M172: انثى | N172: =MATCH($m5,MySortList,0) | O172: 7
J173: 169 | K173: 269 | L173: حبيبه مرزوق فرج احمد | M173: انثى | N173: =MATCH($m5,MySortList,0) | O173: 7
J174: 170 | K174: 270 | L174: حنين ابراهيم صبحى ابراهيم | M174: انثى | N174: =MATCH($m5,MySortList,0) | O174: 7
J175: 171 | K175: 271 | L175: حنين احمد على حسن | M175: انثى | N175: =MATCH($m5,MySortList,0) | O175: 7
J176: 172 | K176: 272 | L176: حنين انس عبدالمنعم عبدالسلام | M176: انثى | N176: =MATCH($m5,MySortList,0) | O176: 7
J177: 173 | K177: 273 | L177: حنين ايمن محمود سليمان | M177: انثى | N177: =MATCH($m5,MySortList,0) | O177: 7
J178: 174 | K178: 274 | L178: حنين خالد شلبى شعبان | M178: انثى | N178: =MATCH($m5,MySortList,0) | O178: 7
J179: 175 | K179: 275 | L179: حنين رمضان فؤاد عبدالعزيز | M179: انثى | N179: =MATCH($m5,MySortList,0) | O179: 7
J180: 176 | K180: 276 | L180: حنين عبدالجواد عوض عبداللطيف | M180: انثى | N180: =MATCH($m5,MySortList,0) | O180: 7
J181: 177 | K181: 277 | L181: حنين على عبدالحليم محمد | M181: انثى | N181: =MATCH($m5,MySortList,0) | O181: 7
J182: 178 | K182: 278 | L182: حنين عماد عبدالسميع حسن | M182: انثى | N182: =MATCH($m5,MySortList,0) | O182: 7
J183: 179 | K183: 279 | L183: حنين ماضى حامد احمد | M183: انثى | N183: =MATCH($m5,MySortList,0) | O183: 7
J184: 180 | K184: 280 | L184: حنين محمد عبدالحى عبدالموجود | M184: انثى | N184: =MATCH($m5,MySortList,0) | O184: 7
J185: 181 | K185: 281 | L185: دعاء احمد سعد ابراهيم | M185: انثى | N185: =MATCH($m5,MySortList,0) | O185: 7
J186: 182 | K186: 282 | L186: دعاء زين محمد عبدالحميد | M186: انثى | N186: =MATCH($m5,MySortList,0) | O186: 7
J187: 183 | K187: 283 | L187: دنيا محمد ابوزيد احمد | M187: انثى | N187: =MATCH($m5,MySortList,0) | O187: 7
J188: 184 | K188: 284 | L188: رحمه رجب عبدالهادى علي | M188: انثى | N188: =MATCH($m5,MySortList,0) | O188: 7
J189: 185 | K189: 285 | L189: رحمه فيصل عبدالسلام بسيوني | M189: انثى | N189: =MATCH($m5,MySortList,0) | O189: 7
J190: 186 | K190: 286 | L190: رحمه محمد شعبان سلومه | M190: انثى | N190: =MATCH($m5,MySortList,0) | O190: 7
J191: 187 | K191: 287 | L191: رحمه محمد عبدربه زهران | M191: انثى | N191: =MATCH($m5,MySortList,0) | O191: 7
J192: 188 | K192: 288 | L192: رحمه محمد محمد مصطفي | M192: انثى | N192: =MATCH($m5,MySortList,0) | O192: 7
J193: 189 | K193: 289 | L193: رحمه وليد سليمان رجب | M193: انثى | N193: =MATCH($m5,MySortList,0) | O193: 7
J194: 190 | K194: 290 | L194: رشا ابواليزيد احمد محمد | M194: انثى | N194: =MATCH($m5,MySortList,0) | O194: 7 | P194: نهاية اللجنة
J195: 191 | K195: 291 | L195: روان صفوت حسنى محمد | M195: انثى | N195: =MATCH($m5,MySortList,0) | O195: 8
J196: 192 | K196: 292 | L196: روضه احمد ابراهيم حجازي | M196: انثى | N196: =MATCH($m5,MySortList,0) | O196: 8
J197: 193 | K197: 293 | L197: ريم اشرف فهيم عبدالهادي | M197: انثى | N197: =MATCH($m5,MySortList,0) | O197: =IF(K197="","",VLOOKUP(K197,جلوس,4)) -> 8
J198: 194 | K198: 294 | L198: ريم عاطف عبدالله عبدالله | M198: انثى | N198: =MATCH($m5,MySortList,0) | O198: 8 | P198: =IF(O198=O199,"","نهاية اللجنة") -> 
J199: =IF(J198="","",IF(J198+1>$K$2,"",J198+1)) -> 195 | K199: =IF(K198="","",IF(K198+1>$K$3,"",K198+1)) -> 295 | L199: ريهام على محمد السيد | M199: انثى | N199: =MATCH($m5,MySortList,0) | O199: 8
J200: 196 | K200: 296 | L200: ريهام كمال على خضر | M200: انثى | N200: =MATCH($m5,MySortList,0) | O200: 8
... 113 more rows

Sheet بيانات أساسية 3
D1: الصف الثالث الابتدائى | L1: اكتب فى الخلايا ذات اللون الابيض فقط
J2: العدد | K2: =SUM(G5:G44) -> 260
D3: م | E3: اكتب اول رقم جلوس | G3: =SUM(G5:G44) -> 260 | H3: =COUNT(H5:H44) -> 10 | J3: أعلى رقم | K3: =MAX(E5:F44) -> 560 | P3: =COUNTA(L5:L297) -> 260
E4: من | F4: إلى | G4: عدد اللجنة | H4: اللجنة | J4: م | K4: رقم الجلوس | L4: الاسم | M4: النوع | O4: اللجنة | P4: نهاية اللجنة
D5: =IF(E5="","",COUNT($E$5:E5)) -> 1 | E5: 301 | F5: =IF(G5="","",E5+G5-1) -> 325 | G5: 25 | H5: =IF(E5="","",COUNT($E$5:E5)) -> 1 | J5: 1 | K5: =$E$5 -> 301 | L5: ابراهيم اسماعيل ابراهيم محمد صقر | M5: ذكر | N5: =MATCH($m5,MySortList,0) | O5: =IF(K5="","",VLOOKUP(K5,جلوس,4)) -> 1 | P5: =IF(O5=O6,"","نهاية اللجنة") -> 
A6: مقيد | B6: =COUNTA(L5:L297) -> 260 | D6: =IF(E6="","",COUNT($E$5:E6)) -> 2 | E6: =IF(G6="","",F5+1) -> 326 | F6: =IF(G6="","",E6+G6-1) -> 351 | G6: 26 | H6: =IF(E6="","",COUNT($E$5:E6)) -> 2 | J6: =IF(J5="","",IF(J5+1>$K$2,"",J5+1)) -> 2 | K6: =IF(K5="","",IF(K5+1>$K$3,"",K5+1)) -> 302 | L6: ابراهيم عبداللطيف ابراهيم الصافي | M6: ذكر | N6: =MATCH($m5,MySortList,0) | O6: 1 | P6: =IF(O6=O7,"","نهاية اللجنة") -> 
A7: موزع | B7: =SUM(G5:G44) -> 260 | D7: =IF(E7="","",COUNT($E$5:E7)) -> 3 | E7: =IF(G7="","",F6+1) -> 352 | F7: 377 | G7: 26 | H7: =IF(E7="","",COUNT($E$5:E7)) -> 3 | J7: =IF(J6="","",IF(J6+1>$K$2,"",J6+1)) -> 3 | K7: =IF(K6="","",IF(K6+1>$K$3,"",K6+1)) -> 303 | L7: ابراهيم عبدالناصر ابراهيم محمد | M7: ذكر | N7: =MATCH($m5,MySortList,0) | O7: 1
A8: متبقى | B8: =B6-B7 -> 0 | D8: =IF(E8="","",COUNT($E$5:E8)) -> 4 | E8: 378 | F8: 403 | G8: 26 | H8: =IF(E8="","",COUNT($E$5:E8)) -> 4 | J8: 4 | K8: 304 | L8: احمد احمد محمد عبدالحميد | M8: ذكر | N8: =MATCH($m5,MySortList,0) | O8: 1
D9: =IF(E9="","",COUNT($E$5:E9)) -> 5 | E9: 404 | F9: 431 | G9: 28 | H9: =IF(E9="","",COUNT($E$5:E9)) -> 5 | J9: 5 | K9: 305 | L9: احمد اشرف محمد سيداحمد | M9: ذكر | N9: =MATCH($m5,MySortList,0) | O9: 1
D10: =IF(E10="","",COUNT($E$5:E10)) -> 6 | E10: 432 | F10: 458 | G10: 27 | H10: =IF(E10="","",COUNT($E$5:E10)) -> 6 | J10: 6 | K10: 306 | L10: احمد السيد يوسف طلبه | M10: ذكر | N10: =MATCH($m5,MySortList,0) | O10: 1
D11: =IF(E11="","",COUNT($E$5:E11)) -> 7 | E11: 459 | F11: 485 | G11: 27 | H11: =IF(E11="","",COUNT($E$5:E11)) -> 7 | J11: 7 | K11: 307 | L11: احمد ايهاب فوزي حماد | M11: ذكر | N11: =MATCH($m5,MySortList,0) | O11: 1
D12: =IF(E12="","",COUNT($E$5:E12)) -> 8 | E12: 486 | F12: 511 | G12: 26 | H12: =IF(E12="","",COUNT($E$5:E12)) -> 8 | J12: 8 | K12: 308 | L12: احمد جميل بدير صقر | M12: ذكر | N12: =MATCH($m5,MySortList,0) | O12: 1
D13: =IF(E13="","",COUNT($E$5:E13)) -> 9 | E13: 512 | F13: 536 | G13: 25 | H13: =IF(E13="","",COUNT($E$5:E13)) -> 9 | J13: 9 | K13: 309 | L13: احمد رمضان سيداحمد محمود | M13: ذكر | N13: =MATCH($m5,MySortList,0) | O13: 1
D14: =IF(E14="","",COUNT($E$5:E14)) -> 10 | E14: 537 | F14: 560 | G14: 24 | H14: =IF(E14="","",COUNT($E$5:E14)) -> 10 | J14: 10 | K14: 310 | L14: احمد سالم عبدالمقصود سليمان | M14: ذكر | N14: =MATCH($m5,MySortList,0) | O14: 1
D15: =IF(E15="","",COUNT($E$5:E15)) ->  | H15: =IF(E15="","",COUNT($E$5:E15)) ->  | J15: 11 | K15: 311 | L15: احمد شعبان محمد الجداوى | M15: ذكر | N15: =MATCH($m5,MySortList,0) | O15: 1
D16: =IF(E16="","",COUNT($E$5:E16)) ->  | H16: =IF(E16="","",COUNT($E$5:E16)) ->  | J16: 12 | K16: 312 | L16: احمد عادل عبدالحميد عبدالعزيز | M16: ذكر | N16: =MATCH($m5,MySortList,0) | O16: 1
D17: =IF(E17="","",COUNT($E$5:E17)) ->  | H17: =IF(E17="","",COUNT($E$5:E17)) ->  | J17: 13 | K17: 313 | L17: احمد عباس محمد محمد | M17: ذكر | N17: =MATCH($m5,MySortList,0) | O17: 1
D18: =IF(E18="","",COUNT($E$5:E18)) ->  | H18: =IF(E18="","",COUNT($E$5:E18)) ->  | J18: 14 | K18: 314 | L18: احمد عبدالفتاح السيد احمد | M18: ذكر | N18: =MATCH($m5,MySortList,0) | O18: 1
D19: =IF(E19="","",COUNT($E$5:E19)) ->  | H19: =IF(E19="","",COUNT($E$5:E19)) ->  | J19: 15 | K19: 315 | L19: احمد عبدالوهاب مصطفى | M19: ذكر | N19: =MATCH($m5,MySortList,0) | O19: 1
D20: =IF(E20="","",COUNT($E$5:E20)) ->  | H20: =IF(E20="","",COUNT($E$5:E20)) ->  | J20: 16 | K20: 316 | L20: احمد عزت ابراهيم محمد عبدالله | M20: ذكر | N20: =MATCH($m5,MySortList,0) | O20: 1
D21: =IF(E21="","",COUNT($E$5:E21)) ->  | H21: =IF(E21="","",COUNT($E$5:E21)) ->  | J21: 17 | K21: 317 | L21: احمد علي شاكر عبداللطيف | M21: ذكر | N21: =MATCH($m5,MySortList,0) | O21: 1
D22: =IF(E22="","",COUNT($E$5:E22)) ->  | H22: =IF(E22="","",COUNT($E$5:E22)) ->  | J22: 18 | K22: 318 | L22: أحمد عماد عبد المولي قطب | M22: ذكر | N22: =MATCH($m5,MySortList,0) | O22: 1
D23: =IF(E23="","",COUNT($E$5:E23)) ->  | H23: =IF(E23="","",COUNT($E$5:E23)) ->  | J23: 19 | K23: 319 | L23: احمد عيد عطيه عبدالمجيد | M23: ذكر | N23: =MATCH($m5,MySortList,0) | O23: 1
D24: =IF(E24="","",COUNT($E$5:E24)) ->  | H24: =IF(E24="","",COUNT($E$5:E24)) ->  | J24: 20 | K24: 320 | L24: احمد مجدي فتح الله عبدالواحد | M24: ذكر | N24: =MATCH($m5,MySortList,0) | O24: 1
D25: =IF(E25="","",COUNT($E$5:E25)) ->  | H25: =IF(E25="","",COUNT($E$5:E25)) ->  | J25: 21 | K25: 321 | L25: احمد محمد فكري السعيد | M25: ذكر | N25: =MATCH($m5,MySortList,0) | O25: 1
D26: =IF(E26="","",COUNT($E$5:E26)) ->  | H26: =IF(E26="","",COUNT($E$5:E26)) ->  | J26: 22 | K26: 322 | L26: احمد نبيه متولي ابراهيم | M26: ذكر | N26: =MATCH($m5,MySortList,0) | O26: 1
D27: =IF(E27="","",COUNT($E$5:E27)) ->  | H27: =IF(E27="","",COUNT($E$5:E27)) ->  | J27: 23 | K27: 323 | L27: احمد نشات الشوادفي علي | M27: ذكر | N27: =MATCH($m5,MySortList,0) | O27: 1
D28: =IF(E28="","",COUNT($E$5:E28)) ->  | H28: =IF(E28="","",COUNT($E$5:E28)) ->  | J28: 24 | K28: 324 | L28: احمد هانى محمود صالح السباعى | M28: ذكر | N28: =MATCH($m5,MySortList,0) | O28: 1
D29: =IF(E29="","",COUNT($E$5:E29)) ->  | H29: =IF(E29="","",COUNT($E$5:E29)) ->  | J29: 25 | K29: 325 | L29: احمد هشام عبدالعليم علي | M29: ذكر | N29: =MATCH($m5,MySortList,0) | O29: 1 | P29: نهاية اللجنة
D30: =IF(E30="","",COUNT($E$5:E30)) ->  | H30: =IF(E30="","",COUNT($E$5:E30)) ->  | J30: 26 | K30: 326 | L30: اسامه هشام نصر رزق | M30: ذكر | N30: =MATCH($m5,MySortList,0) | O30: 2
D31: =IF(E31="","",COUNT($E$5:E31)) ->  | H31: =IF(E31="","",COUNT($E$5:E31)) ->  | J31: 27 | K31: 327 | L31: اسماعيل محمد السيد محمد | M31: ذكر | N31: =MATCH($m5,MySortList,0) | O31: 2
D32: =IF(E32="","",COUNT($E$5:E32)) ->  | H32: =IF(E32="","",COUNT($E$5:E32)) ->  | J32: 28 | K32: 328 | L32: السيد ياسر محمود حسن | M32: ذكر | N32: =MATCH($m5,MySortList,0) | O32: 2
D33: =IF(E33="","",COUNT($E$5:E33)) ->  | H33: =IF(E33="","",COUNT($E$5:E33)) ->  | J33: 29 | K33: 329 | L33: انس خالد بدير ابراهيم | M33: ذكر | N33: =MATCH($m5,MySortList,0) | O33: 2
D34: =IF(E34="","",COUNT($E$5:E34)) ->  | H34: =IF(E34="","",COUNT($E$5:E34)) ->  | J34: 30 | K34: 330 | L34: ايهاب احمد ابراهيم محمود | M34: ذكر | N34: =MATCH($m5,MySortList,0) | O34: 2
D35: =IF(E35="","",COUNT($E$5:E35)) ->  | H35: =IF(E35="","",COUNT($E$5:E35)) ->  | J35: 31 | K35: 331 | L35: بسام حسن سعد عويضه | M35: ذكر | N35: =MATCH($m5,MySortList,0) | O35: 2
D36: =IF(E36="","",COUNT($E$5:E36)) ->  | H36: =IF(E36="","",COUNT($E$5:E36)) ->  | J36: 32 | K36: 332 | L36: بولا اسامه سمير جرجس | M36: ذكر | N36: =MATCH($m5,MySortList,0) | O36: 2
D37: =IF(E37="","",COUNT($E$5:E37)) ->  | H37: =IF(E37="","",COUNT($E$5:E37)) ->  | J37: 33 | K37: 333 | L37: توماس وديع فوزي وهبه اسعد | M37: ذكر | N37: =MATCH($m5,MySortList,0) | O37: =IF(K37="","",VLOOKUP(K37,جلوس,4)) -> 2
D38: =IF(E38="","",COUNT($E$5:E38)) ->  | H38: =IF(E38="","",COUNT($E$5:E38)) ->  | J38: 34 | K38: 334 | L38: حامد حماده محمد يوسف وهبه | M38: ذكر | N38: =MATCH($m5,MySortList,0) | O38: 2
D39: =IF(E39="","",COUNT($E$5:E39)) ->  | H39: =IF(E39="","",COUNT($E$5:E39)) ->  | J39: 35 | K39: 335 | L39: حجازي محمد علي عبدالعزيز | M39: ذكر | N39: =MATCH($m5,MySortList,0) | O39: 2
D40: =IF(E40="","",COUNT($E$5:E40)) ->  | H40: =IF(E40="","",COUNT($E$5:E40)) ->  | J40: 36 | K40: 336 | L40: حسام مجدي الشوادفي خليل ياسين | M40: ذكر | N40: =MATCH($m5,MySortList,0) | O40: 2
D41: =IF(E41="","",COUNT($E$5:E41)) ->  | H41: =IF(E41="","",COUNT($E$5:E41)) ->  | J41: 37 | K41: 337 | L41: حمزه رمضان اسماعيل الشناوي | M41: ذكر | N41: =MATCH($m5,MySortList,0) | O41: 2
D42: =IF(E42="","",COUNT($E$5:E42)) ->  | H42: =IF(E42="","",COUNT($E$5:E42)) ->  | J42: 38 | K42: 338 | L42: خالد سمير عبدالغني مصطفي اسماعيل | M42: ذكر | N42: =MATCH($m5,MySortList,0) | O42: 2
D43: =IF(E43="","",COUNT($E$5:E43)) ->  | H43: =IF(E43="","",COUNT($E$5:E43)) ->  | J43: 39 | K43: 339 | L43: رشاد عصام حسين عبدالله | M43: ذكر | N43: =MATCH($m5,MySortList,0) | O43: 2
D44: =IF(E44="","",COUNT($E$5:E44)) ->  | H44: =IF(E44="","",COUNT($E$5:E44)) ->  | J44: 40 | K44: 340 | L44: زياد ايمن صلاح سعد عبدالله | M44: ذكر | N44: =MATCH($m5,MySortList,0) | O44: 2
J45: 41 | K45: 341 | L45: زياد خيري منير اسماعيل | M45: ذكر | N45: =MATCH($m5,MySortList,0) | O45: 2
J46: 42 | K46: 342 | L46: زياد رضا وهبه محمد وهبه | M46: ذكر | N46: =MATCH($m5,MySortList,0) | O46: 2
J47: 43 | K47: 343 | L47: سالم السيد سالم عبدالله | M47: ذكر | N47: =MATCH($m5,MySortList,0) | O47: 2
J48: 44 | K48: 344 | L48: سامح محمد طه عبدالسلام | M48: ذكر | N48: =MATCH($m5,MySortList,0) | O48: 2
J49: 45 | K49: 345 | L49: سعد مصطفي سعد مصطفي | M49: ذكر | N49: =MATCH($m5,MySortList,0) | O49: 2
J50: 46 | K50: 346 | L50: سيف بهاء الدين مرسي غازي | M50: ذكر | N50: =MATCH($m5,MySortList,0) | O50: 2
J51: 47 | K51: 347 | L51: سيف عادل محمود محمد عبدالله | M51: ذكر | N51: =MATCH($m5,MySortList,0) | O51: 2
J52: 48 | K52: 348 | L52: صبحي ابراهيم صبحي طلبه | M52: ذكر | N52: =MATCH($m5,MySortList,0) | O52: 2
J53: 49 | K53: 349 | L53: صبحي محمد ابراهيم خليفه | M53: ذكر | N53: =MATCH($m5,MySortList,0) | O53: 2
J54: 50 | K54: 350 | L54: صبري الطبلاوي عبدالواحد جابر | M54: ذكر | N54: =MATCH($m5,MySortList,0) | O54: 2
J55: 51 | K55: 351 | L55: عابد محمد السبع العشري | M55: ذكر | N55: =MATCH($m5,MySortList,0) | O55: 2 | P55: نهاية اللجنة
J56: 52 | K56: 352 | L56: عبدالحليم محمد عبدالحليم عبدالمقتدر | M56: ذكر | N56: =MATCH($m5,MySortList,0) | O56: 3
J57: 53 | K57: 353 | L57: عبدالرحمن اسلام ابراهيم حسن | M57: ذكر | N57: =MATCH($m5,MySortList,0) | O57: 3
J58: 54 | K58: 354 | L58: عبدالرحمن السيد عيسي علي | M58: ذكر | N58: =MATCH($m5,MySortList,0) | O58: 3
J59: 55 | K59: 355 | L59: عبدالرحمن محمد محمد مصطفي | M59: ذكر | N59: =MATCH($m5,MySortList,0) | O59: 3
J60: 56 | K60: 356 | L60: عبدالرحمن ممدوح حسين زهران | M60: ذكر | N60: =MATCH($m5,MySortList,0) | O60: 3
J61: 57 | K61: 357 | L61: عبدالعزيز نصر عبدالعزيز حسن | M61: ذكر | N61: =MATCH($m5,MySortList,0) | O61: 3
J62: 58 | K62: 358 | L62: عبدالغني اسماعيل عبدالغني اسماعيل | M62: ذكر | N62: =MATCH($m5,MySortList,0) | O62: 3
J63: 59 | K63: 359 | L63: عبدالونيس مبروك العمده عبدالونيس | M63: ذكر | N63: =MATCH($m5,MySortList,0) | O63: 3
J64: 60 | K64: 360 | L64: عصام السيد عصام الدين ابوطالب | M64: ذكر | N64: =MATCH($m5,MySortList,0) | O64: 3
J65: 61 | K65: 361 | L65: عمر ابراهيم محمد ابوالروس | M65: ذكر | N65: =MATCH($m5,MySortList,0) | O65: 3
J66: 62 | K66: 362 | L66: عمر احمد عمر احمد | M66: ذكر | N66: =MATCH($m5,MySortList,0) | O66: 3
J67: 63 | K67: 363 | L67: عمر صابر سعد بسيوني | M67: ذكر | N67: =MATCH($m5,MySortList,0) | O67: 3
J68: 64 | K68: 364 | L68: عمر عبدالعزيز سالم عبدالله | M68: ذكر | N68: =MATCH($m5,MySortList,0) | O68: 3
J69: 65 | K69: 365 | L69: عمر مدحت حسن يوسف | M69: ذكر | N69: =MATCH($m5,MySortList,0) | O69: =IF(K69="","",VLOOKUP(K69,جلوس,4)) -> 3
J70: 66 | K70: 366 | L70: عمر يسري سلامه ابراهيم | M70: ذكر | N70: =MATCH($m5,MySortList,0) | O70: 3 | P70: =IF(O70=O71,"","نهاية اللجنة") -> 
J71: =IF(J70="","",IF(J70+1>$K$2,"",J70+1)) -> 67 | K71: =IF(K70="","",IF(K70+1>$K$3,"",K70+1)) -> 367 | L71: عمرو احمد عبدالحفيظ محمود | M71: ذكر | N71: =MATCH($m5,MySortList,0) | O71: 3
J72: 68 | K72: 368 | L72: فارس كرم مصلح عبدالسلام | M72: ذكر | N72: =MATCH($m5,MySortList,0) | O72: 3
J73: 69 | K73: 369 | L73: فارس وليد محمد محمد | M73: ذكر | N73: =MATCH($m5,MySortList,0) | O73: 3
J74: 70 | K74: 370 | L74: فتحي حمدي علي ابراهيم | M74: ذكر | N74: =MATCH($m5,MySortList,0) | O74: 3
J75: 71 | K75: 371 | L75: فتحي عصام الدين فتحي السيد | M75: ذكر | N75: =MATCH($m5,MySortList,0) | O75: 3
J76: 72 | K76: 372 | L76: كريم حسام الدين محمد عيد | M76: ذكر | N76: =MATCH($m5,MySortList,0) | O76: 3
J77: 73 | K77: 373 | L77: كريم صابر حسن ابراهيم يسن | M77: ذكر | N77: =MATCH($m5,MySortList,0) | O77: 3
J78: 74 | K78: 374 | L78: كريم محمد السيد أحمد إسماعيل | M78: ذكر | N78: =MATCH($m5,MySortList,0) | O78: 3
J79: 75 | K79: 375 | L79: كريم مسعود عوض بسيونى متولى | M79: ذكر | N79: =MATCH($m5,MySortList,0) | O79: 3
J80: 76 | K80: 376 | L80: محمد ابراهيم عبدالخالق بدير | M80: ذكر | N80: =MATCH($m5,MySortList,0) | O80: 3
J81: 77 | K81: 377 | L81: محمد ابراهيم مصطفي حسن | M81: ذكر | N81: =MATCH($m5,MySortList,0) | O81: 3 | P81: نهاية اللجنة
J82: 78 | K82: 378 | L82: محمد احمد داود احمد | M82: ذكر | N82: =MATCH($m5,MySortList,0) | O82: 4
J83: 79 | K83: 379 | L83: محمد احمد زكي محمد | M83: ذكر | N83: =MATCH($m5,MySortList,0) | O83: 4
J84: 80 | K84: 380 | L84: محمد اسعد عبدالسلام عبدالمجيد | M84: ذكر | N84: =MATCH($m5,MySortList,0) | O84: 4
J85: 81 | K85: 381 | L85: محمد السعيد عزت السعيد | M85: ذكر | N85: =MATCH($m5,MySortList,0) | O85: 4
J86: 82 | K86: 382 | L86: محمد السيد عبدالمنعم السيد | M86: ذكر | N86: =MATCH($m5,MySortList,0) | O86: 4
J87: 83 | K87: 383 | L87: محمد السيد عبدالواحد محمد | M87: ذكر | N87: =MATCH($m5,MySortList,0) | O87: 4
J88: 84 | K88: 384 | L88: محمد جلال احمد محمد | M88: ذكر | N88: =MATCH($m5,MySortList,0) | O88: 4
J89: 85 | K89: 385 | L89: محمد صبحي جابر فرج ادم سليمان | M89: ذكر | N89: =MATCH($m5,MySortList,0) | O89: 4
J90: 86 | K90: 386 | L90: محمد طارق إبراهيم عباس | M90: ذكر | N90: =MATCH($m5,MySortList,0) | O90: 4
J91: 87 | K91: 387 | L91: محمد طارق جلال عبدالجواد | M91: ذكر | N91: =MATCH($m5,MySortList,0) | O91: 4
J92: 88 | K92: 388 | L92: محمد عادل احمد بيومي | M92: ذكر | N92: =MATCH($m5,MySortList,0) | O92: 4
J93: 89 | K93: 389 | L93: محمد عباس محمد عباس سيد احمد | M93: ذكر | N93: =MATCH($m5,MySortList,0) | O93: 4
J94: 90 | K94: 390 | L94: محمد عبدالسلام ضيف الله عبدالونيس | M94: ذكر | N94: =MATCH($m5,MySortList,0) | O94: 4
J95: 91 | K95: 391 | L95: محمد علاء محمد طلبه | M95: ذكر | N95: =MATCH($m5,MySortList,0) | O95: 4
J96: 92 | K96: 392 | L96: محمد فتحي مسعد فتحي | M96: ذكر | N96: =MATCH($m5,MySortList,0) | O96: 4
J97: 93 | K97: 393 | L97: محمد كامل حسن ابراهيم | M97: ذكر | N97: =MATCH($m5,MySortList,0) | O97: 4
J98: 94 | K98: 394 | L98: محمد مجدي عطيه موسي | M98: ذكر | N98: =MATCH($m5,MySortList,0) | O98: 4
J99: 95 | K99: 395 | L99: محمد محمد مرسي عبدالخالق | M99: ذكر | N99: =MATCH($m5,MySortList,0) | O99: 4
J100: 96 | K100: 396 | L100: محمد محمود على خضر خليل | M100: ذكر | N100: =MATCH($m5,MySortList,0) | O100: 4
J101: 97 | K101: 397 | L101: محمد محى الدين محمد ابراهيم سلامه | M101: ذكر | N101: =MATCH($m5,MySortList,0) | O101: 4
J102: 98 | K102: 398 | L102: محمد نبيل احمد ابازيد | M102: ذكر | N102: =MATCH($m5,MySortList,0) | O102: 4
J103: 99 | K103: 399 | L103: محمد نشأت عيسي عبدالحميد | M103: ذكر | N103: =MATCH($m5,MySortList,0) | O103: 4
J104: 100 | K104: 400 | L104: محمد نشأت متولي نصر الدين | M104: ذكر | N104: =MATCH($m5,MySortList,0) | O104: 4
J105: 101 | K105: 401 | L105: محمد هلال محمد عبدالحميد | M105: ذكر | N105: =MATCH($m5,MySortList,0) | O105: 4
J106: 102 | K106: 402 | L106: محمد وائل عيد بسيوني | M106: ذكر | N106: =MATCH($m5,MySortList,0) | O106: 4
J107: 103 | K107: 403 | L107: محمد وجيه عبدالفتاح حسين | M107: ذكر | N107: =MATCH($m5,MySortList,0) | O107: 4 | P107: نهاية اللجنة
J108: 104 | K108: 404 | L108: محمد وليد عبدالرؤف عبدالمقصود | M108: ذكر | N108: =MATCH($m5,MySortList,0) | O108: 5
J109: 105 | K109: 405 | L109: محمود السعيد عزت السعيد | M109: ذكر | N109: =MATCH($m5,MySortList,0) | O109: 5
J110: 106 | K110: 406 | L110: محمود انور عبدالحفيظ حسين | M110: ذكر | N110: =MATCH($m5,MySortList,0) | O110: 5
J111: 107 | K111: 407 | L111: محمود عبدالحميد عبدالعزيز اسماعيل | M111: ذكر | N111: =MATCH($m5,MySortList,0) | O111: 5
J112: 108 | K112: 408 | L112: محمود علي محمد السيد عبدربه | M112: ذكر | N112: =MATCH($m5,MySortList,0) | O112: 5
J113: 109 | K113: 409 | L113: محمود قطب عطيه ابراهيم | M113: ذكر | N113: =MATCH($m5,MySortList,0) | O113: 5
J114: 110 | K114: 410 | L114: محمود محمد السيد عبدالحميد | M114: ذكر | N114: =MATCH($m5,MySortList,0) | O114: 5
J115: 111 | K115: 411 | L115: محمود محمد السيد محمود | M115: ذكر | N115: =MATCH($m5,MySortList,0) | O115: 5
J116: 112 | K116: 412 | L116: محمود وجيه حسن عبدالحميد | M116: ذكر | N116: =MATCH($m5,MySortList,0) | O116: 5
J117: 113 | K117: 413 | L117: مروان محمد عبدالعزيز محمد | M117: ذكر | N117: =MATCH($m5,MySortList,0) | O117: 5
J118: 114 | K118: 414 | L118: مسعد اسامه مسعد عبدالحميد | M118: ذكر | N118: =MATCH($m5,MySortList,0) | O118: 5
J119: 115 | K119: 415 | L119: مصطفي احمد يحي محمود | M119: ذكر | N119: =MATCH($m5,MySortList,0) | O119: 5
J120: 116 | K120: 416 | L120: مصطفي يحي مصطفي محمد | M120: ذكر | N120: =MATCH($m5,MySortList,0) | O120: 5
J121: 117 | K121: 417 | L121: مهند وائل عبدالجليل عبدالفتاح | M121: ذكر | N121: =MATCH($m5,MySortList,0) | O121: 5
J122: 118 | K122: 418 | L122: موسي ملاك بشري توفيق | M122: ذكر | N122: =MATCH($m5,MySortList,0) | O122: 5
J123: 119 | K123: 419 | L123: مؤيد محمد علي حسن | M123: ذكر | N123: =MATCH($m5,MySortList,0) | O123: 5
J124: 120 | K124: 420 | L124: هاني محمد ابراهيم محمود | M124: ذكر | N124: =MATCH($m5,MySortList,0) | O124: 5
J125: 121 | K125: 421 | L125: هشام عبدالحميد محمد علي | M125: ذكر | N125: =MATCH($m5,MySortList,0) | O125: 5
J126: 122 | K126: 422 | L126: وليد رافت عبدالسلام حسين | M126: ذكر | N126: =MATCH($m5,MySortList,0) | O126: 5
J127: 123 | K127: 423 | L127: يوسف احمد سلامه ابراهيم | M127: ذكر | N127: =MATCH($m5,MySortList,0) | O127: 5
J128: 124 | K128: 424 | L128: يوسف السيد ابراهيم الليثي | M128: ذكر | N128: =MATCH($m5,MySortList,0) | O128: 5
J129: 125 | K129: 425 | L129: يوسف السيد السيد احمد | M129: ذكر | N129: =MATCH($m5,MySortList,0) | O129: 5
J130: 126 | K130: 426 | L130: يوسف تامر السيد متولي | M130: ذكر | N130: =MATCH($m5,MySortList,0) | O130: 5
J131: 127 | K131: 427 | L131: يوسف عادل السيد محمد | M131: ذكر | N131: =MATCH($m5,MySortList,0) | O131: 5
J132: 128 | K132: 428 | L132: يوسف عبدالرازق فوزي عبدربه | M132: ذكر | N132: =MATCH($m5,MySortList,0) | O132: 5
J133: 129 | K133: 429 | L133: يوسف فتحي يوسف عبدالفتاح بلتاجي | M133: ذكر | N133: =MATCH($m5,MySortList,0) | O133: =IF(K133="","",VLOOKUP(K133,جلوس,4)) -> 5
J134: 130 | K134: 430 | L134: يوسف محمد رجب ابراهيم | M134: ذكر | N134: =MATCH($m5,MySortList,0) | O134: 5 | P134: =IF(O134=O135,"","نهاية اللجنة") -> 
J135: =IF(J134="","",IF(J134+1>$K$2,"",J134+1)) -> 131 | K135: =IF(K134="","",IF(K134+1>$K$3,"",K134+1)) -> 431 | L135: يوسف محمد عبدالهادي طلحه | M135: ذكر | N135: =MATCH($m5,MySortList,0) | O135: 5 | P135: نهاية اللجنة
J136: 132 | K136: 432 | L136: يوسف نصر احمد بيومي | M136: ذكر | N136: =MATCH($m5,MySortList,0) | O136: 6
J137: 133 | K137: 433 | L137: ابه خير عبدالحميد خير | M137: انثى | N137: =MATCH($m5,MySortList,0) | O137: 6
J138: 134 | K138: 434 | L138: اروى السيد حسن يوسف الخميسى | M138: انثى | N138: =MATCH($m5,MySortList,0) | O138: 6
J139: 135 | K139: 435 | L139: اروي عبدالله عبدالعاطي محمد | M139: انثى | N139: =MATCH($m5,MySortList,0) | O139: 6
J140: 136 | K140: 436 | L140: اسراء عبدالرحمن مصطفي موسي | M140: انثى | N140: =MATCH($m5,MySortList,0) | O140: 6
J141: 137 | K141: 437 | L141: اسراء عمرو عيسوي عبيد | M141: انثى | N141: =MATCH($m5,MySortList,0) | O141: 6
J142: 138 | K142: 438 | L142: اسراء مصطفى محمد محمد البيومي | M142: انثى | N142: =MATCH($m5,MySortList,0) | O142: 6
J143: 139 | K143: 439 | L143: أسماء طحاوى محمد على المغازى | M143: انثى | N143: =MATCH($m5,MySortList,0) | O143: 6
J144: 140 | K144: 440 | L144: اسماء عبدالسيد عبداللطيف حسن | M144: انثى | N144: =MATCH($m5,MySortList,0) | O144: 6
J145: 141 | K145: 441 | L145: اسماء فتحي محمد جوده | M145: انثى | N145: =MATCH($m5,MySortList,0) | O145: 6
J146: 142 | K146: 442 | L146: اسماء محمد عبده مصطفي | M146: انثى | N146: =MATCH($m5,MySortList,0) | O146: 6
J147: 143 | K147: 443 | L147: الاء ابراهيم بسيوني الزهيري | M147: انثى | N147: =MATCH($m5,MySortList,0) | O147: 6
J148: 144 | K148: 444 | L148: الاء تامر عبدالرؤف عبدالمقصود | M148: انثى | N148: =MATCH($m5,MySortList,0) | O148: 6
J149: 145 | K149: 445 | L149: الاء حموده السيد متولي | M149: انثى | N149: =MATCH($m5,MySortList,0) | O149: 6
J150: 146 | K150: 446 | L150: الاء محمد علي عبدالمجيد | M150: انثى | N150: =MATCH($m5,MySortList,0) | O150: 6
J151: 147 | K151: 447 | L151: امنيه صبحي محمد جوده | M151: انثى | N151: =MATCH($m5,MySortList,0) | O151: 6
J152: 148 | K152: 448 | L152: اميره ابراهيم بدير عويس | M152: انثى | N152: =MATCH($m5,MySortList,0) | O152: 6
J153: 149 | K153: 449 | L153: اميره عبداللطيف عبدالمنعم خليل | M153: انثى | N153: =MATCH($m5,MySortList,0) | O153: 6
J154: 150 | K154: 450 | L154: ايمان حماده فوزي توفيق | M154: انثى | N154: =MATCH($m5,MySortList,0) | O154: 6
J155: 151 | K155: 451 | L155: ايمان صابر ابراهيم محمد | M155: انثى | N155: =MATCH($m5,MySortList,0) | O155: 6
J156: 152 | K156: 452 | L156: ايه صفوت عيسوي عبيد | M156: انثى | N156: =MATCH($m5,MySortList,0) | O156: 6
J157: 153 | K157: 453 | L157: ايه عرفه محمد محمد | M157: انثى | N157: =MATCH($m5,MySortList,0) | O157: 6
J158: 154 | K158: 454 | L158: بسمله محمد مختار فتحي | M158: انثى | N158: =MATCH($m5,MySortList,0) | O158: 6
J159: 155 | K159: 455 | L159: بسمه خالد عطيه ابراهيم | M159: انثى | N159: =MATCH($m5,MySortList,0) | O159: 6
J160: 156 | K160: 456 | L160: بسنت خالد محمد طه | M160: انثى | N160: =MATCH($m5,MySortList,0) | O160: 6
J161: 157 | K161: 457 | L161: بسنت صبحى ابراهيم السيد فرج | M161: انثى | N161: =MATCH($m5,MySortList,0) | O161: 6
J162: 158 | K162: 458 | L162: جنا خالد حسني عطاالله | M162: انثى | N162: =MATCH($m5,MySortList,0) | O162: 6 | P162: نهاية اللجنة
J163: 159 | K163: 459 | L163: حبيبه احمد السعيد علي | M163: انثى | N163: =MATCH($m5,MySortList,0) | O163: 7
J164: 160 | K164: 460 | L164: حبيبه احمد عزت حامد | M164: انثى | N164: =MATCH($m5,MySortList,0) | O164: 7
J165: 161 | K165: 461 | L165: حبيبه خليل بسيوني الشوادفي | M165: انثى | N165: =MATCH($m5,MySortList,0) | O165: 7
J166: 162 | K166: 462 | L166: حبيبه ماهر صبحي محمد | M166: انثى | N166: =MATCH($m5,MySortList,0) | O166: 7
J167: 163 | K167: 463 | L167: حبيبه محمد عبدالعزيز شعبان | M167: انثى | N167: =MATCH($m5,MySortList,0) | O167: 7
J168: 164 | K168: 464 | L168: حسناء محي الدين عبدالمحسن الدخاخني | M168: انثى | N168: =MATCH($m5,MySortList,0) | O168: 7
J169: 165 | K169: 465 | L169: حنين ابراهيم رجب شعبان | M169: انثى | N169: =MATCH($m5,MySortList,0) | O169: 7
J170: 166 | K170: 466 | L170: حنين ايمن السيد احمد | M170: انثى | N170: =MATCH($m5,MySortList,0) | O170: 7
J171: 167 | K171: 467 | L171: حنين خالد احمد محمد | M171: انثى | N171: =MATCH($m5,MySortList,0) | O171: 7
J172: 168 | K172: 468 | L172: حنين رأفت اسماعيل الشناوي | M172: انثى | N172: =MATCH($m5,MySortList,0) | O172: 7
J173: 169 | K173: 469 | L173: حنين محمد فتحي سعد الدين | M173: انثى | N173: =MATCH($m5,MySortList,0) | O173: 7
J174: 170 | K174: 470 | L174: حنين محمد محمود اسماعيل | M174: انثى | N174: =MATCH($m5,MySortList,0) | O174: 7
J175: 171 | K175: 471 | L175: حنين هايم امين السيد | M175: انثى | N175: =MATCH($m5,MySortList,0) | O175: 7
J176: 172 | K176: 472 | L176: خلود محمد جمال ابراهيم | M176: انثى | N176: =MATCH($m5,MySortList,0) | O176: 7
J177: 173 | K177: 473 | L177: دعاء يوسف ابراهيم علي | M177: انثى | N177: =MATCH($m5,MySortList,0) | O177: 7
J178: 174 | K178: 474 | L178: دنيا سمير احمد محمد | M178: انثى | N178: =MATCH($m5,MySortList,0) | O178: 7
J179: 175 | K179: 475 | L179: دنيا محمد اسماعيل حسين | M179: انثى | N179: =MATCH($m5,MySortList,0) | O179: 7
J180: 176 | K180: 476 | L180: دنيا محمد الدمرداش عبدربه | M180: انثى | N180: =MATCH($m5,MySortList,0) | O180: 7
J181: 177 | K181: 477 | L181: دينا ابراهيم محمد ابراهيم على | M181: انثى | N181: =MATCH($m5,MySortList,0) | O181: 7
J182: 178 | K182: 478 | L182: رازان حسن محمد حسن | M182: انثى | N182: =MATCH($m5,MySortList,0) | O182: 7
J183: 179 | K183: 479 | L183: رحاب فتحي عبدالحميد عبدالله | M183: انثى | N183: =MATCH($m5,MySortList,0) | O183: 7
J184: 180 | K184: 480 | L184: رحمه جمعه عبدالمعطي عبدالرسول | M184: انثى | N184: =MATCH($m5,MySortList,0) | O184: 7
J185: 181 | K185: 481 | L185: رحمه حامد ابرهيم علي | M185: انثى | N185: =MATCH($m5,MySortList,0) | O185: 7
J186: 182 | K186: 482 | L186: رحمه طارق صابر عبدالمجيد | M186: انثى | N186: =MATCH($m5,MySortList,0) | O186: 7
J187: 183 | K187: 483 | L187: رحمه عبدالعزيز عبدالعاطي عبدالفتاح | M187: انثى | N187: =MATCH($m5,MySortList,0) | O187: 7
J188: 184 | K188: 484 | L188: رقيه رشاد منصور محمد | M188: انثى | N188: =MATCH($m5,MySortList,0) | O188: 7
J189: 185 | K189: 485 | L189: روان ابراهيم عبدالفتاح السيد | M189: انثى | N189: =MATCH($m5,MySortList,0) | O189: 7 | P189: نهاية اللجنة
J190: 186 | K190: 486 | L190: روان رجب علي خليفه | M190: انثى | N190: =MATCH($m5,MySortList,0) | O190: 8
J191: 187 | K191: 487 | L191: روان كرم مصلح عبدالسلام | M191: انثى | N191: =MATCH($m5,MySortList,0) | O191: 8
J192: 188 | K192: 488 | L192: روان وائل محمد عبدالفتاح | M192: انثى | N192: =MATCH($m5,MySortList,0) | O192: 8
J193: 189 | K193: 489 | L193: ريهام مختار عبدالفتاح محمود | M193: انثى | N193: =MATCH($m5,MySortList,0) | O193: 8
J194: 190 | K194: 490 | L194: سارة ايمن عبدالرحمن عبدالجواد | M194: انثى | N194: =MATCH($m5,MySortList,0) | O194: 8
J195: 191 | K195: 491 | L195: ساره ايمن علي جمعه | M195: انثى | N195: =MATCH($m5,MySortList,0) | O195: 8
J196: 192 | K196: 492 | L196: ساره جمعه سالم علي | M196: انثى | N196: =MATCH($m5,MySortList,0) | O196: 8
J197: 193 | K197: 493 | L197: ساره عبدالمنعم عوض بلتاجي | M197: انثى | N197: =MATCH($m5,MySortList,0) | O197: =IF(K197="","",VLOOKUP(K197,جلوس,4)) -> 8
J198: 194 | K198: 494 | L198: ساره عصام احمد محمد | M198: انثى | N198: =MATCH($m5,MySortList,0) | O198: 8 | P198: =IF(O198=O199,"","نهاية اللجنة") -> 
J199: =IF(J198="","",IF(J198+1>$K$2,"",J198+1)) -> 195 | K199: =IF(K198="","",IF(K198+1>$K$3,"",K198+1)) -> 495 | L199: ساره محمود سليمان عبدالحميد | M199: انثى | N199: =MATCH($m5,MySortList,0) | O199: 8
J200: 196 | K200: 496 | L200: سلمى محمود نسيم محمود | M200: انثى | N200: =MATCH($m5,MySortList,0) | O200: 8
... 112 more rows

Sheet بيانات أساسية4
D1: الصف الرابع الابتدائى | L1: اكتب فى الخلايا ذات اللون الابيض فقط
J2: العدد | K2: =SUM(G5:G44) -> 48
D3: م | E3: اكتب اول رقم جلوس | G3: =SUM(G5:G44) -> 48 | H3: =COUNT(H5:H44) -> 2 | J3: أعلى رقم | K3: =MAX(E5:F44) -> 58 | P3: =COUNTA(L5:L297) -> 48
E4: من | F4: إلى | G4: عدد اللجنة | H4: اللجنة | J4: م | K4: رقم الجلوس | L4: الاسم | M4: النوع | O4: اللجنة | P4: نهاية اللجنة
C5: 1 | D5: =IF(E5="","",COUNT($E$5:E5)) -> 1 | E5: 11 | F5: =IF(G5="","",E5+G5-1) -> 33 | G5: 23 | H5: =IF(E5="","",COUNT($E$5:E5)) -> 1 | J5: 1 | K5: =$E$5 -> 11 | L5: ابراهيم السيد محمود السيد | M5: ذكر | O5: =IF(K5="","",VLOOKUP(K5,جلوس,4)) -> 1 | P5: =IF(O5=O6,"","نهاية اللجنة") -> 
A6: مقيد | B6: =COUNTA(L5:L297) -> 48 | C6: 2 | D6: =IF(E6="","",COUNT($E$5:E6)) -> 2 | E6: =IF(G6="","",F5+1) -> 34 | F6: =IF(G6="","",E6+G6-1) -> 58 | G6: 25 | H6: =IF(E6="","",COUNT($E$5:E6)) -> 2 | J6: =IF(J5="","",IF(J5+1>$K$2,"",J5+1)) -> 2 | K6: =IF(K5="","",IF(K5+1>$K$3,"",K5+1)) -> 12 | L6: ابراهيم ايمن عبدالرحمن عبدالجواد | M6: ذكر | O6: 1 | P6: =IF(O6=O7,"","نهاية اللجنة") -> 
A7: موزع | B7: =SUM(G5:G44) -> 48 | C7: 3 | D7: =IF(E7="","",COUNT($E$5:E7)) ->  | E7: =IF(G7="","",F6+1) ->  | H7: =IF(E7="","",COUNT($E$5:E7)) ->  | J7: =IF(J6="","",IF(J6+1>$K$2,"",J6+1)) -> 3 | K7: =IF(K6="","",IF(K6+1>$K$3,"",K6+1)) -> 13 | L7: ابراهيم جمال عبدالغفار مصباح | M7: ذكر | O7: 1
A8: متبقى | B8: =B6-B7 -> 0 | C8: 4 | D8: =IF(E8="","",COUNT($E$5:E8)) ->  | H8: =IF(E8="","",COUNT($E$5:E8)) ->  | J8: 4 | K8: 14 | L8: ابراهيم محمد محمد عبدالله | M8: ذكر | O8: 1
C9: 5 | D9: =IF(E9="","",COUNT($E$5:E9)) ->  | H9: =IF(E9="","",COUNT($E$5:E9)) ->  | J9: 5 | K9: 15 | L9: ابراهيم محمد محمود ابراهيم | M9: ذكر | O9: 1
C10: 6 | D10: =IF(E10="","",COUNT($E$5:E10)) ->  | H10: =IF(E10="","",COUNT($E$5:E10)) ->  | J10: 6 | K10: 16 | L10: ابراهيم محمود عيد ابراهيم | M10: ذكر | O10: 1
C11: 7 | D11: =IF(E11="","",COUNT($E$5:E11)) ->  | H11: =IF(E11="","",COUNT($E$5:E11)) ->  | J11: 7 | K11: 17 | L11: احمد ابراهيم عبدالمنعم علي | M11: ذكر | O11: 1
C12: 8 | D12: =IF(E12="","",COUNT($E$5:E12)) ->  | H12: =IF(E12="","",COUNT($E$5:E12)) ->  | J12: 8 | K12: 18 | L12: احمد اسامه ادريس مرسي | M12: ذكر | O12: 1
C13: 9 | D13: =IF(E13="","",COUNT($E$5:E13)) ->  | H13: =IF(E13="","",COUNT($E$5:E13)) ->  | J13: 9 | K13: 19 | L13: احمد اشرف السيد احمد | M13: ذكر | O13: 1
C14: 10 | D14: =IF(E14="","",COUNT($E$5:E14)) ->  | H14: =IF(E14="","",COUNT($E$5:E14)) ->  | J14: 10 | K14: 20 | L14: احمد السيد عبدالحميد سليمان | M14: ذكر | O14: 1
C15: 11 | D15: =IF(E15="","",COUNT($E$5:E15)) ->  | H15: =IF(E15="","",COUNT($E$5:E15)) ->  | J15: =IF(J14="","",IF(J14+1>$K$2,"",J14+1)) -> 11 | K15: 21 | L15: احمد السيد عبدالهادي خطاب | M15: ذكر | O15: 1
C16: 12 | D16: =IF(E16="","",COUNT($E$5:E16)) ->  | H16: =IF(E16="","",COUNT($E$5:E16)) ->  | J16: 12 | K16: 22 | L16: احمد انور محمد محمد | M16: ذكر | O16: 1
C17: 13 | D17: =IF(E17="","",COUNT($E$5:E17)) ->  | H17: =IF(E17="","",COUNT($E$5:E17)) ->  | J17: 13 | K17: 23 | L17: احمد ايهاب عبدالله احمد | M17: ذكر | O17: 1
C18: 14 | D18: =IF(E18="","",COUNT($E$5:E18)) ->  | H18: =IF(E18="","",COUNT($E$5:E18)) ->  | J18: 14 | K18: 24 | L18: احمد بسيوني احمد محمد | M18: ذكر | O18: 1
C19: 15 | D19: =IF(E19="","",COUNT($E$5:E19)) ->  | H19: =IF(E19="","",COUNT($E$5:E19)) ->  | J19: 15 | K19: 25 | L19: احمد حسن علي عبدالجواد | M19: ذكر | O19: 1
C20: 16 | D20: =IF(E20="","",COUNT($E$5:E20)) ->  | H20: =IF(E20="","",COUNT($E$5:E20)) ->  | J20: 16 | K20: 26 | L20: احمد حسين عبدالستار عويس | M20: ذكر | O20: 1
B21: امتحان الفصل الدراسى الأول | C21: 17 | D21: =IF(E21="","",COUNT($E$5:E21)) ->  | H21: =IF(E21="","",COUNT($E$5:E21)) ->  | J21: 17 | K21: 27 | L21: احمد حماده احمد محمد | M21: ذكر | O21: 1
B22: امتحان الفصل الدراسى الثانى | C22: 18 | D22: =IF(E22="","",COUNT($E$5:E22)) ->  | H22: =IF(E22="","",COUNT($E$5:E22)) ->  | J22: 18 | K22: 28 | L22: احمد حماده احمد محمد حسن | M22: ذكر | O22: 1
C23: 19 | D23: =IF(E23="","",COUNT($E$5:E23)) ->  | H23: =IF(E23="","",COUNT($E$5:E23)) ->  | J23: 19 | K23: 29 | L23: احمد خالد زكريا عوض | M23: ذكر | O23: 1
C24: 20 | D24: =IF(E24="","",COUNT($E$5:E24)) ->  | H24: =IF(E24="","",COUNT($E$5:E24)) ->  | J24: 20 | K24: 30 | L24: احمد رمضان محمود عبدالواحد | M24: ذكر | O24: 1
C25: 21 | D25: =IF(E25="","",COUNT($E$5:E25)) ->  | H25: =IF(E25="","",COUNT($E$5:E25)) ->  | J25: 21 | K25: 31 | L25: احمد صبحي قنديل محمد | M25: ذكر | O25: 1
C26: 22 | D26: =IF(E26="","",COUNT($E$5:E26)) ->  | H26: =IF(E26="","",COUNT($E$5:E26)) ->  | J26: 22 | K26: 32 | L26: احمد صلاح على عبده | M26: ذكر | O26: 1
C27: 23 | D27: =IF(E27="","",COUNT($E$5:E27)) ->  | H27: =IF(E27="","",COUNT($E$5:E27)) ->  | J27: 23 | K27: 33 | L27: احمد عبد الله حسين عبيد حجازى | M27: ذكر | O27: 1 | P27: نهاية اللجنة
C28: 24 | D28: =IF(E28="","",COUNT($E$5:E28)) ->  | H28: =IF(E28="","",COUNT($E$5:E28)) ->  | J28: 24 | K28: 34 | L28: احمد عبدالصمد زكي ابراهيم | M28: ذكر | O28: 2
C29: 25 | D29: =IF(E29="","",COUNT($E$5:E29)) ->  | H29: =IF(E29="","",COUNT($E$5:E29)) ->  | J29: 25 | K29: 35 | L29: احمد عبدالعال عبدالمجيد ندا | M29: ذكر | O29: 2
C30: 26 | D30: =IF(E30="","",COUNT($E$5:E30)) ->  | H30: =IF(E30="","",COUNT($E$5:E30)) ->  | J30: 26 | K30: 36 | L30: احمد عبدالكريم السيد عبدالنبي | M30: ذكر | O30: 2
C31: 27 | D31: =IF(E31="","",COUNT($E$5:E31)) ->  | H31: =IF(E31="","",COUNT($E$5:E31)) ->  | J31: 27 | K31: 37 | L31: احمد عصام احمد عبد الله | M31: ذكر | O31: 2
C32: 28 | D32: =IF(E32="","",COUNT($E$5:E32)) ->  | H32: =IF(E32="","",COUNT($E$5:E32)) ->  | J32: 28 | K32: 38 | L32: احمد عماد عبدالفتاح ابراهيم | M32: ذكر | O32: 2
C33: 29 | D33: =IF(E33="","",COUNT($E$5:E33)) ->  | H33: =IF(E33="","",COUNT($E$5:E33)) ->  | J33: 29 | K33: 39 | L33: احمد فؤاد احمد محمد | M33: ذكر | O33: 2
C34: 30 | D34: =IF(E34="","",COUNT($E$5:E34)) ->  | H34: =IF(E34="","",COUNT($E$5:E34)) ->  | J34: 30 | K34: 40 | L34: احمد محمد ابراهيم حسين | M34: ذكر | O34: 2
C35: 31 | D35: =IF(E35="","",COUNT($E$5:E35)) ->  | H35: =IF(E35="","",COUNT($E$5:E35)) ->  | J35: 31 | K35: 41 | L35: عمار محمد محمود عبدالواحد | O35: 2
C36: 32 | D36: =IF(E36="","",COUNT($E$5:E36)) ->  | H36: =IF(E36="","",COUNT($E$5:E36)) ->  | J36: 32 | K36: 42 | L36: عمر اشرف السيد بدير | O36: 2
C37: 33 | D37: =IF(E37="","",COUNT($E$5:E37)) ->  | H37: =IF(E37="","",COUNT($E$5:E37)) ->  | J37: 33 | K37: 43 | L37: عمر السيد محمد علي | O37: =IF(K37="","",VLOOKUP(K37,جلوس,4)) -> 2
C38: 34 | D38: =IF(E38="","",COUNT($E$5:E38)) ->  | H38: =IF(E38="","",COUNT($E$5:E38)) ->  | J38: 34 | K38: 44 | L38: عمر رفيق السيد ابراهيم | O38: 2
C39: 35 | D39: =IF(E39="","",COUNT($E$5:E39)) ->  | H39: =IF(E39="","",COUNT($E$5:E39)) ->  | J39: 35 | K39: 45 | L39: عمر عبدالفتاح جمعه مصطفى | O39: 2
C40: 36 | D40: =IF(E40="","",COUNT($E$5:E40)) ->  | H40: =IF(E40="","",COUNT($E$5:E40)) ->  | J40: 36 | K40: 46 | L40: عمر محمد فتح الله دومه | O40: 2
C41: 37 | D41: =IF(E41="","",COUNT($E$5:E41)) ->  | H41: =IF(E41="","",COUNT($E$5:E41)) ->  | J41: 37 | K41: 47 | L41: عمر محمد فزاع عبد المجيد | O41: 2
C42: 38 | D42: =IF(E42="","",COUNT($E$5:E42)) ->  | H42: =IF(E42="","",COUNT($E$5:E42)) ->  | J42: 38 | K42: 48 | L42: فارس رافت كمال محمود | O42: 2
C43: 39 | D43: =IF(E43="","",COUNT($E$5:E43)) ->  | H43: =IF(E43="","",COUNT($E$5:E43)) ->  | J43: 39 | K43: 49 | L43: فؤاد محمد علاء الدين عبدالمنعم | O43: 2
C44: 40 | D44: =IF(E44="","",COUNT($E$5:E44)) ->  | H44: =IF(E44="","",COUNT($E$5:E44)) ->  | J44: 40 | K44: 50 | L44: كريم رامى ابراهيم عطيه | O44: 2
J45: 41 | K45: 51 | L45: كريم محمد رفاعى محمد | O45: 2
J46: 42 | K46: 52 | L46: مازن محمد السعيد محمد الشامى | O46: 2
J47: 43 | K47: 53 | L47: محمد ابراهيم سالم عبدالمجيد | O47: 2
J48: 44 | K48: 54 | L48: محمد ابراهيم محمد سليمان | O48: 2
J49: 45 | K49: 55 | L49: محمد احمد السيد عبدالوهاب | O49: 2
J50: 46 | K50: 56 | L50: محمد احمد رشدى عبدالعزيز | O50: 2
J51: 47 | K51: 57 | L51: محمد احمد محمد عبدالعزيز | O51: 2
J52: 48 | K52: 58 | L52: محمد انور عبدالعزيز محمد | O52: 2 | P52: نهاية اللجنة
O69: =IF(K69="","",VLOOKUP(K69,جلوس,4)) -> 
P70: =IF(O70=O71,"","نهاية اللجنة") -> 
J71: =IF(J70="","",IF(J70+1>$K$2,"",J70+1)) ->  | K71: =IF(K70="","",IF(K70+1>$K$3,"",K70+1)) -> 
O133: =IF(K133="","",VLOOKUP(K133,جلوس,4)) -> 
P134: =IF(O134=O135,"","نهاية اللجنة") -> 
J135: =IF(J134="","",IF(J134+1>$K$2,"",J134+1)) ->  | K135: =IF(K134="","",IF(K134+1>$K$3,"",K134+1)) -> 
O197: =IF(K197="","",VLOOKUP(K197,جلوس,4)) -> 
P198: =IF(O198=O199,"","نهاية اللجنة") -> 
J199: =IF(J198="","",IF(J198+1>$K$2,"",J198+1)) ->  | K199: =IF(K198="","",IF(K198+1>$K$3,"",K198+1)) -> 
O261: =IF(K261="","",VLOOKUP(K261,جلوس,4)) -> 
P262: =IF(O262=O263,"","نهاية اللجنة") -> 
J263: =IF(J262="","",IF(J262+1>$K$2,"",J262+1)) ->  | K263: =IF(K262="","",IF(K262+1>$K$3,"",K262+1)) -> 
O325: =IF(K325="","",VLOOKUP(K325,جلوس,4)) -> 
P326: =IF(O326=O327,"","نهاية اللجنة") -> 
J327: =IF(J326="","",IF(J326+1>$K$2,"",J326+1)) ->  | K327: =IF(K326="","",IF(K326+1>$K$3,"",K326+1)) -> 
O389: =IF(K389="","",VLOOKUP(K389,جلوس,4)) -> 
P390: =IF(O390=O391,"","نهاية اللجنة") -> 
J391: =IF(J390="","",IF(J390+1>$K$2,"",J390+1)) ->  | K391: =IF(K390="","",IF(K390+1>$K$3,"",K390+1)) -> 
O453: =IF(K453="","",VLOOKUP(K453,جلوس,4)) -> 
P454: =IF(O454=O455,"","نهاية اللجنة") -> 
J455: =IF(J454="","",IF(J454+1>$K$2,"",J454+1)) ->  | K455: =IF(K454="","",IF(K454+1>$K$3,"",K454+1)) -> 
O517: =IF(K517="","",VLOOKUP(K517,جلوس,4)) -> 
P518: =IF(O518=O519,"","نهاية اللجنة") -> 
J519: =IF(J518="","",IF(J518+1>$K$2,"",J518+1)) ->  | K519: =IF(K518="","",IF(K518+1>$K$3,"",K518+1)) -> 
O581: =IF(K581="","",VLOOKUP(K581,جلوس,4)) -> 
P582: =IF(O582=O583,"","نهاية اللجنة") -> 
J583: =IF(J582="","",IF(J582+1>$K$2,"",J582+1)) ->  | K583: =IF(K582="","",IF(K582+1>$K$3,"",K582+1)) -> 

Sheet بيانات أساسية 5
D1: الصف الخامس الابتدائى | L1: اكتب فى الخلايا ذات اللون الابيض فقط
J2: العدد | K2: =COUNTA(L5:L297) -> 55
D3: م | E3: اكتب اول رقم جلوس | G3: =SUM(G5:G44) -> 55 | H3: =COUNT(H5:H44) -> 2 | J3: أعلى رقم | K3: =MAX(E5:F44) -> 360 | P3: =COUNTA(L5:L297) -> 55
E4: من | F4: إلى | G4: العدد | H4: اللجنة | J4: م | K4: رقم الجلوس | L4: الاسم | M4: النوع | O4: اللجنة | P4: نهاية اللجنة
D5: =IF(E5="","",COUNT($E$5:E5)) -> 1 | E5: 306 | F5: =IF(G5="","",E5+G5-1) -> 333 | G5: 28 | H5: =IF(E5="","",COUNT($E$5:E5)) -> 1 | J5: 1 | K5: =$E$5 -> 306 | L5: ابراهيم عبدالله محمد محمد | M5: ذكر | O5: =IF(K5="","",VLOOKUP(K5,جلوس,4)) -> 1 | P5: =IF(O5=O6,"","نهاية اللجنة") -> 
A6: مقيد | B6: =COUNTA(L5:L297) -> 55 | D6: =IF(E6="","",COUNT($E$5:E6)) -> 2 | E6: =IF(G6="","",F5+1) -> 334 | F6: =IF(G6="","",E6+G6-1) -> 360 | G6: 27 | H6: =IF(E6="","",COUNT($E$5:E6)) -> 2 | J6: =IF(J5="","",IF(J5+1>$K$2,"",J5+1)) -> 2 | K6: =IF(K5="","",IF(K5+1>$K$3,"",K5+1)) -> 307 | L6: ابراهيم فتحي ابراهيم عطيه | M6: ذكر | O6: 1 | P6: =IF(O6=O7,"","نهاية اللجنة") -> 
A7: موزع | B7: =SUM(G5:G44) -> 55 | D7: =IF(E7="","",COUNT($E$5:E7)) ->  | E7: =IF(G7="","",F6+1) ->  | H7: =IF(E7="","",COUNT($E$5:E7)) ->  | J7: =IF(J6="","",IF(J6+1>$K$2,"",J6+1)) -> 3 | K7: =IF(K6="","",IF(K6+1>$K$3,"",K6+1)) -> 308 | L7: ابراهيم محمد ابراهيم عبده | M7: ذكر | O7: 1
A8: متبقى | B8: =B6-B7 -> 0 | D8: =IF(E8="","",COUNT($E$5:E8)) ->  | H8: =IF(E8="","",COUNT($E$5:E8)) ->  | J8: 4 | K8: 309 | L8: ابراهيم محمد احمد فرج | M8: ذكر | O8: 1
D9: =IF(E9="","",COUNT($E$5:E9)) ->  | H9: =IF(E9="","",COUNT($E$5:E9)) ->  | J9: 5 | K9: 310 | L9: ابراهيم محمد محمد خليفه | M9: ذكر | O9: 1
D10: =IF(E10="","",COUNT($E$5:E10)) ->  | H10: =IF(E10="","",COUNT($E$5:E10)) ->  | J10: 6 | K10: 311 | L10: ابراهيم وائل محمد محمد | M10: ذكر | O10: 1
D11: =IF(E11="","",COUNT($E$5:E11)) ->  | H11: =IF(E11="","",COUNT($E$5:E11)) ->  | J11: 7 | K11: 312 | L11: ابرهيم شريف ابراهيم محمد | M11: ذكر | O11: 1
D12: =IF(E12="","",COUNT($E$5:E12)) ->  | H12: =IF(E12="","",COUNT($E$5:E12)) ->  | J12: 8 | K12: 313 | L12: احمد ابراهيم ابراهيم عباس | M12: ذكر | O12: 1
D13: =IF(E13="","",COUNT($E$5:E13)) ->  | H13: =IF(E13="","",COUNT($E$5:E13)) ->  | J13: 9 | K13: 314 | L13: احمد احمد عبدالواحد محمد | M13: ذكر | O13: 1
D14: =IF(E14="","",COUNT($E$5:E14)) ->  | H14: =IF(E14="","",COUNT($E$5:E14)) ->  | J14: 10 | K14: 315 | L14: احمد الدسوقي عبدربه ابراهيم | M14: ذكر | O14: 1
D15: =IF(E15="","",COUNT($E$5:E15)) ->  | H15: =IF(E15="","",COUNT($E$5:E15)) ->  | J15: 11 | K15: 316 | L15: احمد السيد رضوان علي | M15: ذكر | O15: 1
D16: =IF(E16="","",COUNT($E$5:E16)) ->  | H16: =IF(E16="","",COUNT($E$5:E16)) ->  | J16: 12 | K16: 317 | L16: احمد رفاعي شحاتة السيد | M16: ذكر | O16: 1
D17: =IF(E17="","",COUNT($E$5:E17)) ->  | H17: =IF(E17="","",COUNT($E$5:E17)) ->  | J17: 13 | K17: 318 | L17: احمد رفعت علي عبدالسلام | M17: ذكر | O17: 1
D18: =IF(E18="","",COUNT($E$5:E18)) ->  | H18: =IF(E18="","",COUNT($E$5:E18)) ->  | J18: 14 | K18: 319 | L18: احمد سامي عبدالهادي علي | M18: ذكر | O18: 1
D19: =IF(E19="","",COUNT($E$5:E19)) ->  | H19: =IF(E19="","",COUNT($E$5:E19)) ->  | J19: 15 | K19: 320 | L19: احمد سعد محمد سعد | M19: ذكر | O19: 1
D20: =IF(E20="","",COUNT($E$5:E20)) ->  | H20: =IF(E20="","",COUNT($E$5:E20)) ->  | J20: 16 | K20: 321 | L20: احمد سعد محمد عبدالخالق | M20: ذكر | O20: 1
D21: =IF(E21="","",COUNT($E$5:E21)) ->  | H21: =IF(E21="","",COUNT($E$5:E21)) ->  | J21: 17 | K21: 322 | L21: احمد شوقى محمد عبدالقادر | M21: ذكر | O21: 1
D22: =IF(E22="","",COUNT($E$5:E22)) ->  | H22: =IF(E22="","",COUNT($E$5:E22)) ->  | J22: 18 | K22: 323 | L22: احمد صابر حسن ابراهيم يسن | M22: ذكر | O22: 1
D23: =IF(E23="","",COUNT($E$5:E23)) ->  | H23: =IF(E23="","",COUNT($E$5:E23)) ->  | J23: 19 | K23: 324 | L23: احمد عبدالباسط محمد علي | M23: ذكر | O23: 1
D24: =IF(E24="","",COUNT($E$5:E24)) ->  | H24: =IF(E24="","",COUNT($E$5:E24)) ->  | J24: 20 | K24: 325 | L24: احمد عبدالله صالح احمد | M24: ذكر | O24: 1
D25: =IF(E25="","",COUNT($E$5:E25)) ->  | H25: =IF(E25="","",COUNT($E$5:E25)) ->  | J25: 21 | K25: 326 | L25: احمد فتحي شعبان عبدالعزيز | M25: ذكر | O25: 1
D26: =IF(E26="","",COUNT($E$5:E26)) ->  | H26: =IF(E26="","",COUNT($E$5:E26)) ->  | J26: 22 | K26: 327 | L26: احمد ماهر ابراهيم احمد ابراهيم | M26: ذكر | O26: 1
D27: =IF(E27="","",COUNT($E$5:E27)) ->  | H27: =IF(E27="","",COUNT($E$5:E27)) ->  | J27: 23 | K27: 328 | L27: احمد ماهر السيد عبدالمنعم | M27: ذكر | O27: 1
D28: =IF(E28="","",COUNT($E$5:E28)) ->  | H28: =IF(E28="","",COUNT($E$5:E28)) ->  | J28: 24 | K28: 329 | L28: احمد ماهر رشدي عبدالحميد | M28: ذكر | O28: 1
D29: =IF(E29="","",COUNT($E$5:E29)) ->  | H29: =IF(E29="","",COUNT($E$5:E29)) ->  | J29: 25 | K29: 330 | L29: احمد محمد السيد محمد | M29: ذكر | O29: 1
D30: =IF(E30="","",COUNT($E$5:E30)) ->  | H30: =IF(E30="","",COUNT($E$5:E30)) ->  | J30: 26 | K30: 331 | L30: خالد سمير عبدالغني مصطفي اسماعيل | O30: 1
D31: =IF(E31="","",COUNT($E$5:E31)) ->  | H31: =IF(E31="","",COUNT($E$5:E31)) ->  | J31: 27 | K31: 332 | L31: رشاد عصام حسين عبدالله | O31: 1
D32: =IF(E32="","",COUNT($E$5:E32)) ->  | H32: =IF(E32="","",COUNT($E$5:E32)) ->  | J32: 28 | K32: 333 | L32: زياد ايمن صلاح سعد عبدالله | O32: 1 | P32: نهاية اللجنة
D33: =IF(E33="","",COUNT($E$5:E33)) ->  | H33: =IF(E33="","",COUNT($E$5:E33)) ->  | J33: 29 | K33: 334 | L33: زياد خيري منير اسماعيل | O33: 2
D34: =IF(E34="","",COUNT($E$5:E34)) ->  | H34: =IF(E34="","",COUNT($E$5:E34)) ->  | J34: 30 | K34: 335 | L34: زياد رضا وهبه محمد وهبه | O34: 2
D35: =IF(E35="","",COUNT($E$5:E35)) ->  | H35: =IF(E35="","",COUNT($E$5:E35)) ->  | J35: 31 | K35: 336 | L35: سالم السيد سالم عبدالله | O35: 2
D36: =IF(E36="","",COUNT($E$5:E36)) ->  | H36: =IF(E36="","",COUNT($E$5:E36)) ->  | J36: 32 | K36: 337 | L36: سامح محمد طه عبدالسلام | O36: 2
D37: =IF(E37="","",COUNT($E$5:E37)) ->  | H37: =IF(E37="","",COUNT($E$5:E37)) ->  | J37: 33 | K37: 338 | L37: سعد مصطفي سعد مصطفي | O37: =IF(K37="","",VLOOKUP(K37,جلوس,4)) -> 2
D38: =IF(E38="","",COUNT($E$5:E38)) ->  | H38: =IF(E38="","",COUNT($E$5:E38)) ->  | J38: 34 | K38: 339 | L38: سيف بهاء الدين مرسي غازي | O38: 2
D39: =IF(E39="","",COUNT($E$5:E39)) ->  | H39: =IF(E39="","",COUNT($E$5:E39)) ->  | J39: 35 | K39: 340 | L39: سيف عادل محمود محمد عبدالله | O39: 2
D40: =IF(E40="","",COUNT($E$5:E40)) ->  | H40: =IF(E40="","",COUNT($E$5:E40)) ->  | J40: 36 | K40: 341 | L40: صبحي ابراهيم صبحي طلبه | O40: 2
D41: =IF(E41="","",COUNT($E$5:E41)) ->  | H41: =IF(E41="","",COUNT($E$5:E41)) ->  | J41: 37 | K41: 342 | L41: صبحي محمد ابراهيم خليفه | O41: 2
D42: =IF(E42="","",COUNT($E$5:E42)) ->  | H42: =IF(E42="","",COUNT($E$5:E42)) ->  | J42: 38 | K42: 343 | L42: صبري الطبلاوي عبدالواحد جابر | O42: 2
D43: =IF(E43="","",COUNT($E$5:E43)) ->  | H43: =IF(E43="","",COUNT($E$5:E43)) ->  | J43: 39 | K43: 344 | L43: عابد محمد السبع العشري | O43: 2
D44: =IF(E44="","",COUNT($E$5:E44)) ->  | H44: =IF(E44="","",COUNT($E$5:E44)) ->  | J44: 40 | K44: 345 | L44: عبدالحليم محمد عبدالحليم عبدالمقتدر | O44: 2
J45: 41 | K45: 346 | L45: عبدالرحمن اسلام ابراهيم حسن | O45: 2
J46: 42 | K46: 347 | L46: عبدالرحمن السيد عيسي علي | O46: 2
J47: 43 | K47: 348 | L47: عبدالرحمن محمد محمد مصطفي | O47: 2
J48: 44 | K48: 349 | L48: عبدالرحمن ممدوح حسين زهران | O48: 2
J49: 45 | K49: 350 | L49: عبدالعزيز نصر عبدالعزيز حسن | O49: 2
J50: 46 | K50: 351 | L50: عبدالغني اسماعيل عبدالغني اسماعيل | O50: 2
J51: 47 | K51: 352 | L51: عبدالونيس مبروك العمده عبدالونيس | O51: 2
J52: 48 | K52: 353 | L52: عصام السيد عصام الدين ابوطالب | O52: 2
J53: 49 | K53: 354 | L53: عمر ابراهيم محمد ابوالروس | O53: 2
J54: 50 | K54: 355 | L54: عمر احمد عمر احمد | O54: 2
J55: 51 | K55: 356 | L55: عمر صابر سعد بسيوني | O55: 2
J56: 52 | K56: 357 | L56: عمر عبدالعزيز سالم عبدالله | O56: 2
J57: 53 | K57: 358 | L57: عمر مدحت حسن يوسف | O57: 2
J58: 54 | K58: 359 | L58: عمر يسري سلامه ابراهيم | O58: 2
J59: 55 | K59: 360 | L59: عمرو احمد عبدالحفيظ محمود | O59: 2 | P59: نهاية اللجنة
O69: =IF(K69="","",VLOOKUP(K69,جلوس,4)) -> 
P70: =IF(O70=O71,"","نهاية اللجنة") -> 
J71: =IF(J70="","",IF(J70+1>$K$2,"",J70+1)) ->  | K71: =IF(K70="","",IF(K70+1>$K$3,"",K70+1)) -> 
O133: =IF(K133="","",VLOOKUP(K133,جلوس,4)) -> 
P134: =IF(O134=O135,"","نهاية اللجنة") -> 
J135: =IF(J134="","",IF(J134+1>$K$2,"",J134+1)) ->  | K135: =IF(K134="","",IF(K134+1>$K$3,"",K134+1)) -> 
O197: =IF(K197="","",VLOOKUP(K197,جلوس,4)) -> 
P198: =IF(O198=O199,"","نهاية اللجنة") -> 
J199: =IF(J198="","",IF(J198+1>$K$2,"",J198+1)) ->  | K199: =IF(K198="","",IF(K198+1>$K$3,"",K198+1)) -> 
O261: =IF(K261="","",VLOOKUP(K261,جلوس,4)) -> 
P262: =IF(O262=O263,"","نهاية اللجنة") -> 
J263: =IF(J262="","",IF(J262+1>$K$2,"",J262+1)) ->  | K263: =IF(K262="","",IF(K262+1>$K$3,"",K262+1)) -> 

Sheet جدول الصف الرابع والخامس
U1: اليوم
D2: محافظة كفر الشيخ | U2: السبت
D3: مديرية التربية والتعليم | U3: الأحد | V3: لغة عربية وإملاء وخط | Z3: =A2 -> 00:00:00 | AB3: جدول إمتحان أخر العام الدراسى
D4: إدارة التعليم الإبتدائى
B5: جدول إمتحانات النقل للصف الرابع والخامس الإبتدائى (الرسمى العام والرسمى لغات )
B6: =اساسية!B11&""&اساسية!B13 -> الفصل الدراسى الثانى2014/ 2015 م | J6: Time | L6: الوقت | U6: الاثنين | V6: رياضيات | Z6: =Z3+1 -> 1900-01-01 | AB6: جدول إمتحان نصف العام الدراسى
J7: 0 | L7: 7 | S7: Transfer | U7: الثلاثاء | V7: دراسات إجتماعية | Z7: =Z6+1 -> 1900-01-02
B8: اليوم | C8: التاريخ | D8: وقت الامتحان | F8: زمن الإجابة | G8: المادة | H8: ملاحظات | J8: 1 | K8: ساعة | L8: 7.3 | S8: 0 | T8: 0 | U8: الأربعاء | V8: علوم | Z8: =Z7+1 -> 1900-01-03
D9: من | E9: إلى | J9: 1.5 | K9: ساعة و نصف | L9: 8 | M9: من | N9: إلى | O9: تحويل من | P9: تحويل إلى | Q9: الفرق | S9: 1 | T9: 13 | U9: الخميس | V9: لغة إنجليزية | Z9: 1900-01-04 | AB9: الصف الأول الإعدادى
B10: الخميس | C10: 2015-05-07 | D10: 8 | E10: 10.3 | F10: =VLOOKUP(Q10,time,2,0) -> ساعتان و نصف | G10: لغة عربية وإملاء وخط | H10: 20 ق الاخيره للاملاء | J10: 2 | K10: ساعتان | L10: 8.3 | M10: =D10 -> 8 | N10: =E10 -> 10.3 | O10: =VLOOKUP(M10,Transfer,2,0) -> 8 | P10: =VLOOKUP(N10,Transfer,2,0) -> 10.5 | Q10: =P10-O10 -> 2.5 | S10: 1.3 | T10: 13.5 | U10: الجمعة | V10: حاسب الى | Z10: 1900-01-05 | AB10: الصف الثالث الإعدادى
D11: 11 | E11: 12.3 | F11: =VLOOKUP(Q11,time,2,0) -> ساعة و نصف | G11: تربية دينية | H11: شفهيا للصف الثانى | J11: 2.5 | K11: ساعتان و نصف | L11: 9 | M11: =D11 -> 11 | N11: 12.3 | O11: =VLOOKUP(M11,Transfer,2,0) -> 11 | P11: =VLOOKUP(N11,Transfer,2,0) -> 12.5 | Q11: 1.5 | S11: 2 | T11: 14 | V11: تربية فنية | Z11: 1900-01-06
F12: 0 | J12: 3 | K12: ثلاث ساعات | L12: 9.3 | M12: 0 | N12: 0 | O12: 0 | P12: 0 | Q12: 0 | S12: 2.3 | T12: 14.5 | V12: تربية دينية | Z12: 1900-01-07
B13: السبت | C13: 2015-05-09 | D13: 8 | E13: 9.3 | F13: ساعة و نصف | G13: رياضيات | J13: 3.5 | K13: ثلاث ساعات و نصف | L13: 10 | M13: 8 | N13: 9.3 | O13: 8 | P13: 9.5 | Q13: 1.5 | S13: 3 | T13: 15 | V13: هندسة | Z13: 1900-01-08
D14: 10 | E14: 11.3 | F14: =VLOOKUP(Q14,time,2,0) -> ساعة و نصف | G14: علوم | J14: 4 | K14: أربع ساعات | L14: 10.3 | M14: 10 | N14: 11.3 | O14: 10 | P14: 11.5 | Q14: 1.5 | S14: 3.3 | T14: 15.5 | V14: جبر وإحصاء | Z14: 1900-01-09
B15: الأحد | C15: 2015-05-10 | D15: 8 | E15: 9.3 | F15: =VLOOKUP(Q15,time,2,0) -> ساعة و نصف | G15: لغة إنجليزية | J15: 4.5 | K15: أربع ساعات و نصف | L15: 11 | M15: 8 | N15: 9.3 | O15: 8 | P15: 9.5 | Q15: 1.5 | S15: 4 | T15: 16 | Z15: 1900-01-10
D16: 10 | E16: 11.3 | F16: =VLOOKUP(Q16,time,2,0) -> ساعة و نصف | G16: دراسات إجتماعية | J16: 5 | K16: خمس ساعات | L16: 11.3 | M16: 10 | N16: 11.3 | O16: 10 | P16: 11.5 | Q16: 1.5 | S16: 4.3 | T16: 16.5 | Z16: 1900-01-11
B17: الخميس | C17: 2015-05-10 | D17: 8 | E17: 10 | F17: =VLOOKUP(Q17,time,2,0) -> ساعتان | G17: رياضيات | J17: 5.5 | K17: خمس ساعات و نصف | L17: 12 | M17: 8 | N17: 10 | O17: 8 | P17: 10 | Q17: 2 | S17: 5 | T17: 17 | Z17: 1900-01-12
D18: 10.3 | E18: 11.3 | F18: =VLOOKUP(Q18,time,2,0) -> ساعة | G18: تربية دينية | J18: 6 | K18: ست ساعات | L18: 12.3 | M18: 10.3 | N18: 11.3 | O18: 10.5 | P18: 11.5 | Q18: 1 | S18: 5.3 | T18: 17.5 | Z18: 1900-01-13
B19: الأربعاء | C19: 2015-05-06 | D19: 8 | E19: 9.3 | F19: ساعة و نصف | G19: رياضيات | L19: 1 | M19: 8 | N19: 9.3 | O19: 8 | P19: 9.5 | Q19: 1.5 | S19: 6 | T19: 18 | Z19: 1900-01-14
D20: 10 | E20: 11 | F20: ساعة | G20: تربية دينية | L20: 1.3 | M20: 10 | N20: 11 | O20: 10 | P20: 11 | Q20: 1 | S20: 6.3 | T20: 18.5 | Z20: 1900-01-15
B21: الأحد | C21: 2015-01-11 | D21: 8 | E21: 10 | F21: ساعتان | G21: جبر وإحصاء | L21: 2 | M21: 8 | N21: 10 | O21: 8 | P21: 10 | Q21: 2 | S21: 7 | T21: 7 | Z21: 1900-01-16
D22: 8.3 | E22: 10 | F22: ساعة و نصف | L22: 2.3 | M22: 8.3 | N22: 10 | O22: 8.5 | P22: 10 | Q22: 1.5 | S22: 7.3 | T22: 7.5 | Z22: 1900-01-17
B23: الأحد | C23: 2013-05-13 | F23: 0 | L23: 3 | M23: 0 | N23: 0 | O23: 0 | P23: 0 | Q23: 0 | S23: 8 | T23: 8 | Z23: 1900-01-18
F24: 0 | L24: 3.3 | M24: 0 | N24: 0 | O24: 0 | P24: 0 | Q24: 0 | S24: 8.3 | T24: 8.5 | Z24: 1900-01-19
B25: الإثنين | C25: 2013-05-14 | F25: 0 | L25: 4 | M25: 0 | N25: 0 | O25: 0 | P25: 0 | Q25: 0 | S25: 9 | T25: 9 | Z25: 1900-01-20
F26: 0 | L26: 4.3 | M26: 0 | N26: 0 | O26: 0 | P26: 0 | Q26: 0 | S26: 9.3 | T26: 9.5 | Z26: 1900-01-21
F27: 0 | L27: 5 | M27: 0 | N27: 0 | O27: 0 | P27: 0 | Q27: 0 | S27: 10 | T27: 10 | Z27: 1900-01-22
B28: الأربعاء | C28: 2015-05-06 | D28: 8 | E28: 9.3 | F28: =VLOOKUP(Q28,time,2,0) -> 0 | G28: رياضيات | L28: 5.3 | S28: 10.3 | T28: 10.5 | Z28: =Z27+1 -> 1900-01-23
D29: 10 | E29: 11 | F29: 0 | G29: تربية دينية
B30: الأربعاء | C30: 2015-05-06 | D30: 8 | E30: 9.3 | F30: 0 | G30: رياضيات
D31: 10 | E31: 11 | F31: 0 | G31: تربية دينية
B32: الأربعاء | C32: 2015-05-06 | D32: 8 | E32: 9.3 | F32: 0 | G32: رياضيات
D33: 10 | E33: 11 | F33: 0 | G33: تربية دينية
B34: تعليمات
B35: 1 - يتم الإمتحان على مسؤلية المدرسة وبإشراف التوجيه .
B36: 2 - يتم النقل أليا من الصف الاول للصف الثانى ومن الصف الثانى الى الصف الثالث
B37: 3 - يتم إمتحان الطلاب المتخلفين عن الفصل الدراسى الاول بعذر مقبول بمعرفة المدرسة وطبقا لهذا الجدول .
B38: 4 -التقويم يكون شفهيا فى جميع المواد للصف الاول الابتدائى فى الفصل الدراسى الثانى
C39: ويكون تحريريا للصف الثانى ويتم تفدير الاجابات فى صورة تقديرات فقط.
B40: 5 - تضاف درجة الطالب فى الانشطة الاجباريه وكذا الانشطه الاختيارية الى المجموع الكلى.
B41: 6- تقويم الانشطه التربوية يكون عمليا ويعقد قبل الامتحان بوقت كاف. | L41: 6 | S41: 11 | T41: 11 | Z41: =Z28+1 -> 1900-01-24
B42: 7 - يتم ترتيب الاوائل وفقا للمجموع الكلى للمواد الاساسية فالاضغر سنا فالترتيب الهجائى.
B47: إحصاء وحاسب ألى | D47: رئيس لجنة النظام والمراقبة | G47: يعتمد .. مدير المدرسة
B48: .............................. | D48: ....................................... | G48: ............................... | S48: 11.3 | T48: 11.5 | Z48: =Z41+1 -> 1900-01-25
S49: 12 | T49: 12 | Z49: 1900-01-26
S50: 12.3 | T50: 12.5 | Z50: 1900-01-27
Z51: 1900-01-28
Z52: 1900-01-29
Z53: 1900-01-30
Z54: 1900-01-31
Z55: 1900-02-01
Z56: 1900-02-02
Z57: 1900-02-03
Z58: 1900-02-04
Z59: 1900-02-05
Z60: 1900-02-06
Z61: 1900-02-07
Z62: 1900-02-08
Z63: 1900-02-09
Z64: 1900-02-10
Z65: 1900-02-11
Z66: 1900-02-12
Z67: 1900-02-13
Z68: 1900-02-14
Z69: 1900-02-15
Z70: 1900-02-16
Z71: 1900-02-17
Z72: =A3 -> 00:00:00
Z73: =Z72+1 -> 1900-01-01
Z74: =Z73+1 -> 1900-01-02
Z75: 1900-01-03
Z76: 1900-01-04
Z77: 1900-01-05
Z78: 1900-01-06
Z79: 1900-01-07
Z80: 1900-01-08
Z81: 1900-01-09
Z82: 1900-01-10
Z83: 1900-01-11
Z84: 1900-01-12
Z85: 1900-01-13
Z86: 1900-01-14
Z87: 1900-01-15
Z88: 1900-01-16
Z89: 1900-01-17
Z90: 1900-01-18
Z91: 1900-01-19
Z92: 1900-01-20
Z93: 1900-01-21
Z94: 1900-01-22
Z95: 1900-01-23
Z96: 1900-01-24
Z97: 1900-01-25
Z98: 1900-01-26
Z99: 1900-01-27
Z100: 1900-01-28
Z101: 1900-01-29
Z102: 1900-01-30
Z103: 1900-01-31
Z104: 1900-02-01
Z105: 1900-02-02
Z106: 1900-02-03
Z107: 1900-02-04
Z108: 1900-02-05
Z109: 1900-02-06
Z110: 1900-02-07
Z111: 1900-02-08
Z112: 1900-02-09
Z113: 1900-02-10
Z114: 1900-02-11
Z115: 1900-02-12
Z116: 1900-02-13
Z117: 1900-02-14
Z118: 1900-02-15
Z119: 1900-02-16
Z120: 1900-02-17
Z121: 1900-02-18
Z122: 1900-02-19
Z123: 1900-02-20
Z124: 1900-02-21
Z125: 1900-02-22
Z126: 1900-02-23
Z127: 1900-02-24
Z128: 1900-02-25
Z129: 1900-02-26
Z130: 1900-02-27
Z131: 1900-02-28
Z132: 60
Z133: 1900-03-01
Z134: 1900-03-02
Z135: 1900-03-03
Z136: 1900-03-04
Z137: 1900-03-05
Z138: =Z137+1 -> 1900-03-06
Z139: 1900-03-07
Z140: 1900-03-08
Z141: 1900-03-09
Z142: 1900-03-10
Z143: 1900-03-11
Z144: 1900-03-12
Z145: 1900-03-13
Z146: 1900-03-14
Z147: 1900-03-15
Z148: 1900-03-16
Z149: 1900-03-17
Z150: 1900-03-18
Z151: 1900-03-19
Z152: 1900-03-20
Z153: 1900-03-21
Z154: 1900-03-22
Z155: 1900-03-23
Z156: 1900-03-24
Z157: 1900-03-25
Z158: 1900-03-26
Z159: 1900-03-27
Z160: 1900-03-28
Z161: =Z160+1 -> 1900-03-29
Z162: =Z161+1 -> 1900-03-30
Z163: 1900-03-31
Z164: 1900-04-01
Z165: 1900-04-02
Z166: 1900-04-03
Z167: 1900-04-04
Z168: 1900-04-05
Z169: 1900-04-06
Z170: 1900-04-07
Z171: 1900-04-08
Z172: 1900-04-09
Z173: 1900-04-10
Z174: 1900-04-11
Z175: 1900-04-12
Z176: 1900-04-13
Z177: 1900-04-14
Z178: 1900-04-15
Z179: 1900-04-16
Z180: 1900-04-17
Z181: 1900-04-18
Z182: 1900-04-19
Z183: 1900-04-20
Z184: 1900-04-21
Z185: 1900-04-22
Z186: 1900-04-23
Z187: 1900-04-24
Z188: 1900-04-25
Z189: 1900-04-26
Z190: 1900-04-27
Z191: =Z190+1 -> 1900-04-28
Z192: =Z191+1 -> 1900-04-29
Z193: 1900-04-30
Z194: 1900-05-01
Z195: 1900-05-02
Z196: 1900-05-03
Z197: 1900-05-04
Z198: 1900-05-05
Z199: 1900-05-06
Z200: 1900-05-07
Z201: 1900-05-08
Z202: 1900-05-09
Z203: 1900-05-10
Z204: 1900-05-11
... 6 more rows

Sheet جدول الصف الثانى والثالث
U1: اليوم
D2: محافظة كفر الشيخ | U2: السبت
D3: مديرية التربية والتعليم | U3: الأحد | V3: لغة عربية وإملاء وخط | Z3: =A2 -> 00:00:00 | AB3: جدول إمتحان أخر العام الدراسى
D4: إدارة التعليم الإبتدائى
B5: جدول إمتحانات النقل للصف الثانى والثالث الإبتدائى (الرسمى العام والرسمى لغات )
B6: (الصف الثانى) | D6: =اساسية!B11&""&اساسية!B13 -> الفصل الدراسى الثانى2014/ 2015 م | J6: Time | L6: الوقت | U6: الاثنين | V6: رياضيات | Z6: =Z3+1 -> 1900-01-01 | AB6: جدول إمتحان نصف العام الدراسى
J7: 0 | L7: 7 | S7: Transfer | U7: الثلاثاء | V7: دراسات إجتماعية | Z7: =Z6+1 -> 1900-01-02
B8: اليوم | C8: التاريخ | D8: وقت الامتحان | F8: زمن الإجابة | G8: المادة | H8: ملاحظات | J8: 1 | K8: ساعة | L8: 7.3 | S8: 0 | T8: 0 | U8: الأربعاء | V8: علوم | Z8: =Z7+1 -> 1900-01-03
D9: من | E9: إلى | J9: 1.5 | K9: ساعة و نصف | L9: 8 | M9: من | N9: إلى | O9: تحويل من | P9: تحويل إلى | Q9: الفرق | S9: 1 | T9: 13 | U9: الخميس | V9: لغة إنجليزية | Z9: 1900-01-04 | AB9: الصف الأول الإعدادى
B10: الثلاثاء | C10: 2015-05-05 | D10: 8 | E10: 10 | F10: =VLOOKUP(Q10,time,2,0) -> ساعتان | G10: لغة عربية وإملاء وخط | H10: 20 ق الاخيره للاملاء | J10: 2 | K10: ساعتان | L10: 8.3 | M10: =D10 -> 8 | N10: =E10 -> 10 | O10: =VLOOKUP(M10,Transfer,2,0) -> 8 | P10: =VLOOKUP(N10,Transfer,2,0) -> 10 | Q10: =P10-O10 -> 2 | S10: 1.3 | T10: 13.5 | U10: الجمعة | V10: حاسب الى | Z10: 1900-01-05 | AB10: الصف الثالث الإعدادى
D11: 10.3 | E11: 12 | F11: =VLOOKUP(Q11,time,2,0) -> ساعة و نصف | G11: لغة إنجليزية | H11: شفهيا للصف الثانى | J11: 2.5 | K11: ساعتان و نصف | L11: 9 | M11: =D11 -> 10.3 | N11: 12 | O11: =VLOOKUP(M11,Transfer,2,0) -> 10.5 | P11: =VLOOKUP(N11,Transfer,2,0) -> 12 | Q11: 1.5 | S11: 2 | T11: 14 | V11: تربية فنية | Z11: 1900-01-06
F12: 0 | J12: 3 | K12: ثلاث ساعات | L12: 9.3 | M12: 0 | N12: 0 | O12: 0 | P12: 0 | Q12: 0 | S12: 2.3 | T12: 14.5 | V12: تربية دينية | Z12: 1900-01-07
B13: الأربعاء | C13: 2015-05-06 | D13: 8 | E13: 9.3 | F13: ساعة و نصف | G13: رياضيات | J13: 3.5 | K13: ثلاث ساعات و نصف | L13: 10 | M13: 8 | N13: 9.3 | O13: 8 | P13: 9.5 | Q13: 1.5 | S13: 3 | T13: 15 | V13: هندسة | Z13: 1900-01-08
D14: 10 | E14: 11 | F14: ساعة | G14: تربية دينية | J14: 4 | K14: أربع ساعات | L14: 10.3 | M14: 10 | N14: 11 | O14: 10 | P14: 11 | Q14: 1 | S14: 3.3 | T14: 15.5 | V14: جبر وإحصاء | Z14: 1900-01-09
J15: 4.5 | K15: أربع ساعات و نصف | L15: 11 | M15: 0 | N15: 0 | O15: 0 | P15: 0 | Q15: 0 | S15: 4 | T15: 16 | Z15: 1900-01-10
C16: (الصف الثالث) | D16: =اساسية!B11&""&اساسية!B13 -> الفصل الدراسى الثانى2014/ 2015 م | J16: 5 | K16: خمس ساعات | L16: 11.3 | M16: الفصل الدراسى الثانى2014/ 2015 م | N16: 0 | P16: 0 | S16: 4.3 | T16: 16.5 | Z16: 1900-01-11
B17: الثلاثاء | C17: 2015-05-05 | D17: 8 | E17: 10 | F17: ساعتان | G17: لغة عربية وإملاء وخط | J17: 5.5 | K17: خمس ساعات و نصف | L17: 12 | M17: 8 | N17: 10 | O17: 8 | P17: 10 | Q17: 2 | S17: 5 | T17: 17 | Z17: 1900-01-12
D18: 10.3 | E18: 12 | F18: ساعة و نصف | G18: لغة إنجليزية | J18: 6 | K18: ست ساعات | L18: 12.3 | M18: 10.3 | N18: 12 | O18: 10.5 | P18: 12 | Q18: 1.5 | S18: 5.3 | T18: 17.5 | Z18: 1900-01-13
B19: الأربعاء | C19: 2015-05-06 | D19: 8 | E19: 9.3 | F19: ساعة و نصف | G19: رياضيات | L19: 1 | M19: 8 | N19: 9.3 | O19: 8 | P19: 9.5 | Q19: 1.5 | S19: 6 | T19: 18 | Z19: 1900-01-14
D20: 10 | E20: 11 | F20: ساعة | G20: تربية دينية | L20: 1.3 | M20: 10 | N20: 11 | O20: 10 | P20: 11 | Q20: 1 | S20: 6.3 | T20: 18.5 | Z20: 1900-01-15
B21: الأحد | C21: 2015-01-11 | D21: 8 | E21: 10 | F21: ساعتان | G21: جبر وإحصاء | L21: 2 | M21: 8 | N21: 10 | O21: 8 | P21: 10 | Q21: 2 | S21: 7 | T21: 7 | Z21: 1900-01-16
D22: 8.3 | E22: 10 | F22: ساعة و نصف | L22: 2.3 | M22: 8.3 | N22: 10 | O22: 8.5 | P22: 10 | Q22: 1.5 | S22: 7.3 | T22: 7.5 | Z22: 1900-01-17
B23: الأحد | C23: 2013-05-13 | F23: 0 | L23: 3 | M23: 0 | N23: 0 | O23: 0 | P23: 0 | Q23: 0 | S23: 8 | T23: 8 | Z23: 1900-01-18
F24: 0 | L24: 3.3 | M24: 0 | N24: 0 | O24: 0 | P24: 0 | Q24: 0 | S24: 8.3 | T24: 8.5 | Z24: 1900-01-19
B25: الإثنين | C25: 2013-05-14 | F25: 0 | L25: 4 | M25: 0 | N25: 0 | O25: 0 | P25: 0 | Q25: 0 | S25: 9 | T25: 9 | Z25: 1900-01-20
F26: 0 | L26: 4.3 | M26: 0 | N26: 0 | O26: 0 | P26: 0 | Q26: 0 | S26: 9.3 | T26: 9.5 | Z26: 1900-01-21
F27: 0 | L27: 5 | M27: 0 | N27: 0 | O27: 0 | P27: 0 | Q27: 0 | S27: 10 | T27: 10 | Z27: 1900-01-22
B28: تعليمات | L28: 5.3 | S28: 10.3 | T28: 10.5 | Z28: =Z27+1 -> 1900-01-23
B29: 1 - يتم الإمتحان على مسؤلية المدرسة وبإشراف التوجيه .
B30: 2 - يتم النقل أليا من الصف الاول للصف الثانى ومن الصف الثانى الى الصف الثالث
B31: 3 - يتم إمتحان الطلاب المتخلفين عن الفصل الدراسى الاول بعذر مقبول بمعرفة المدرسة وطبقا لهذا الجدول .
B32: 4 -التقويم يكون شفهيا فى جميع المواد للصف الاول الابتدائى فى الفصل الدراسى الثانى
C33: ويكون تحريريا للصف الثانى ويتم تفدير الاجابات فى صورة تقديرات فقط.
B34: 5 - تضاف درجة الطالب فى الانشطة الاجباريه وكذا الانشطه الاختيارية الى المجموع الكلى.
B35: 6- تقويم الانشطه التربوية يكون عمليا ويعقد قبل الامتحان بوقت كاف. | L35: 6 | S35: 11 | T35: 11 | Z35: =Z28+1 -> 1900-01-24
B36: 7 - يتم ترتيب الاوائل وفقا للمجموع الكلى للمواد الاساسية فالاضغر سنا فالترتيب الهجائى.
B41: إحصاء وحاسب ألى | D41: رئيس لجنة النظام والمراقبة | G41: يعتمد .. مدير المدرسة
B42: .............................. | D42: ....................................... | G42: ............................... | S42: 11.3 | T42: 11.5 | Z42: =Z35+1 -> 1900-01-25
S43: 12 | T43: 12 | Z43: 1900-01-26
S44: 12.3 | T44: 12.5 | Z44: 1900-01-27
Z45: 1900-01-28
Z46: 1900-01-29
Z47: 1900-01-30
Z48: 1900-01-31
Z49: 1900-02-01
Z50: 1900-02-02
Z51: 1900-02-03
Z52: 1900-02-04
Z53: 1900-02-05
Z54: 1900-02-06
Z55: 1900-02-07
Z56: 1900-02-08
Z57: 1900-02-09
Z58: 1900-02-10
Z59: 1900-02-11
Z60: 1900-02-12
Z61: 1900-02-13
Z62: 1900-02-14
Z63: 1900-02-15
Z64: 1900-02-16
Z65: 1900-02-17
Z66: =A3 -> 00:00:00
Z67: =Z66+1 -> 1900-01-01
Z68: =Z67+1 -> 1900-01-02
Z69: 1900-01-03
Z70: 1900-01-04
Z71: 1900-01-05
Z72: 1900-01-06
Z73: 1900-01-07
Z74: 1900-01-08
Z75: 1900-01-09
Z76: 1900-01-10
Z77: 1900-01-11
Z78: 1900-01-12
Z79: 1900-01-13
Z80: 1900-01-14
Z81: 1900-01-15
Z82: 1900-01-16
Z83: 1900-01-17
Z84: 1900-01-18
Z85: 1900-01-19
Z86: 1900-01-20
Z87: 1900-01-21
Z88: 1900-01-22
Z89: 1900-01-23
Z90: 1900-01-24
Z91: 1900-01-25
Z92: 1900-01-26
Z93: 1900-01-27
Z94: 1900-01-28
Z95: 1900-01-29
Z96: 1900-01-30
Z97: 1900-01-31
Z98: 1900-02-01
Z99: 1900-02-02
Z100: 1900-02-03
Z101: 1900-02-04
Z102: 1900-02-05
Z103: 1900-02-06
Z104: 1900-02-07
Z105: 1900-02-08
Z106: 1900-02-09
Z107: 1900-02-10
Z108: 1900-02-11
Z109: 1900-02-12
Z110: 1900-02-13
Z111: 1900-02-14
Z112: 1900-02-15
Z113: 1900-02-16
Z114: 1900-02-17
Z115: 1900-02-18
Z116: 1900-02-19
Z117: 1900-02-20
Z118: 1900-02-21
Z119: 1900-02-22
Z120: 1900-02-23
Z121: 1900-02-24
Z122: 1900-02-25
Z123: 1900-02-26
Z124: 1900-02-27
Z125: 1900-02-28
Z126: 60
Z127: 1900-03-01
Z128: 1900-03-02
Z129: 1900-03-03
Z130: 1900-03-04
Z131: 1900-03-05
Z132: =Z131+1 -> 1900-03-06
Z133: 1900-03-07
Z134: 1900-03-08
Z135: 1900-03-09
Z136: 1900-03-10
Z137: 1900-03-11
Z138: 1900-03-12
Z139: 1900-03-13
Z140: 1900-03-14
Z141: 1900-03-15
Z142: 1900-03-16
Z143: 1900-03-17
Z144: 1900-03-18
Z145: 1900-03-19
Z146: 1900-03-20
Z147: 1900-03-21
Z148: 1900-03-22
Z149: 1900-03-23
Z150: 1900-03-24
Z151: 1900-03-25
Z152: 1900-03-26
Z153: 1900-03-27
Z154: 1900-03-28
Z155: =Z154+1 -> 1900-03-29
Z156: =Z155+1 -> 1900-03-30
Z157: 1900-03-31
Z158: 1900-04-01
Z159: 1900-04-02
Z160: 1900-04-03
Z161: 1900-04-04
Z162: 1900-04-05
Z163: 1900-04-06
Z164: 1900-04-07
Z165: 1900-04-08
Z166: 1900-04-09
Z167: 1900-04-10
Z168: 1900-04-11
Z169: 1900-04-12
Z170: 1900-04-13
Z171: 1900-04-14
Z172: 1900-04-15
Z173: 1900-04-16
Z174: 1900-04-17
Z175: 1900-04-18
Z176: 1900-04-19
Z177: 1900-04-20
Z178: 1900-04-21
Z179: 1900-04-22
Z180: 1900-04-23
Z181: 1900-04-24
Z182: 1900-04-25
Z183: 1900-04-26
Z184: 1900-04-27
Z185: =Z184+1 -> 1900-04-28
Z186: =Z185+1 -> 1900-04-29
Z187: 1900-04-30
Z188: 1900-05-01
Z189: 1900-05-02
Z190: 1900-05-03
Z191: 1900-05-04
Z192: 1900-05-05
Z193: 1900-05-06
Z194: 1900-05-07
Z195: 1900-05-08
Z196: 1900-05-09
Z197: 1900-05-10
Z198: 1900-05-11
Z199: 1900-05-12
Z200: 1900-05-13
Z201: 1900-05-14
Z202: 1900-05-15
Z203: 1900-05-16
Z204: 1900-05-17

Sheet مناداة
B1: كشوف المناداه الاول والثانى | L1: 12 | M1: =MAX('بيانات أساسية2'!D5:D44) -> 10 | N1: =MAX('بيانات أساسية2'!D5:D44) -> 10 | O1: =VLOOKUP(D6,اللجان,4) -> 0
B2: =اساسية!B6 -> مديرية التربية والتعليم | F2: =B2 -> مديرية التربية والتعليم | L2: =L1 -> 12 | M2: =MAX('بيانات أساسية 3'!D5:D44) -> 10 | N2: =MAX('بيانات أساسية 3'!D5:D44) -> 10 | O2: =VLOOKUP(D6,اللجان2,4) -> 0
B3: =اساسية!B8 -> مدرسة الشهيدين الاعدادية | F3: =B3 -> مدرسة الشهيدين الاعدادية
B4: =اساسية!B11 -> الفصل الدراسى الثانى | F4: =B4 -> الفصل الدراسى الثانى | L4: =O1 -> 0
B5: =اساسية!B13 -> 2014/ 2015 م | F5: =B5 -> 2014/ 2015 م | L5: =O2 -> 0
C6: كشف مناداة لجنة رقم | D6: =IF(L1>M1,"",L1) ->  | G6: =C6 -> كشف مناداة لجنة رقم | H6: =IF(L2>M2,"",L2) -> 
C7: ='بيانات أساسية2'!D1 -> الصف الثانى الابتدائى | G7: ='بيانات أساسية 3'!D1 -> الصف الثالث الابتدائى | L7: =MAX(L4:L5) -> 0
B8: م | C8: اسم الطالب | D8: رقم الجلوس | F8: م | G8: اسم الطالب | H8: رقم الجلوس
B9: =IF(D6="","",1) ->  | C9: =IF(B9="","",VLOOKUP(D9,data1,2)) ->  | D9: =IF(D6="","",VLOOKUP(D6,اللجان,2)) ->  | F9: =IF(H6="","",1) ->  | G9: =IF(F9="","",VLOOKUP(H9,data2,2)) ->  | H9: =IF(H6="","",VLOOKUP(H6,اللجان2,2)) -> 
B10: =IF(B9="","",IF(B9+1>$O$1,"",B9+1)) ->  | C10: =IF(B10="","",VLOOKUP(D10,data1,2)) ->  | D10: =IF(B9="","",IF(B10="","",D9+1)) ->  | F10: =IF(F9="","",IF(F9+1>$O$2,"",F9+1)) ->  | H10: =IF(F9="","",IF(F10="","",H9+1)) -> 
B11: =IF(B10="","",IF(B10+1>$O$1,"",B10+1)) ->  | D11: =IF(B10="","",IF(B11="","",D10+1)) ->  | F11: =IF(F10="","",IF(F10+1>$O$2,"",F10+1)) ->  | H11: =IF(F10="","",IF(F11="","",H10+1)) -> 
C30: =IF(B30="","",VLOOKUP(D30,data1,2)) ->  | D30: =IF(B29="","",IF(B30="","",D29+1)) ->  | H30: =IF(F29="","",IF(F30="","",H29+1)) -> 
C31: =IF(B31="","",VLOOKUP(D31,data1,2)) ->  | D31: =IF(B30="","",IF(B31="","",D30+1)) ->  | H31: =IF(F30="","",IF(F31="","",H30+1)) -> 
C32: =IF(B32="","",VLOOKUP(D32,data1,2)) ->  | D32: =IF(B31="","",IF(B32="","",D31+1)) ->  | H32: =IF(F31="","",IF(F32="","",H31+1)) -> 
C39: =IF(B39="","",VLOOKUP(D39,data1,2)) ->  | D39: =IF(B38="","",IF(B39="","",D38+1)) ->  | G39: =IF(F39="","",VLOOKUP(H39,data1,2)) ->  | H39: =IF(F38="","",IF(F39="","",H38+1)) -> 
C40: =IF(B40="","",VLOOKUP(D40,data1,2)) ->  | D40: =IF(B39="","",IF(B40="","",D39+1)) ->  | G40: =IF(F40="","",VLOOKUP(H40,data1,2)) ->  | H40: =IF(F39="","",IF(F40="","",H39+1)) -> 
B42: رئيس الكنترول مدير المدرسة | F42: =B42 -> رئيس الكنترول مدير المدرسة
B43: =اساسية!B10 &" "&اساسية!B9 -> فاتن بسيونى طه رسول | F43: =B43 -> فاتن بسيونى طه رسول

Sheet مناداة 4
B1: كشوف المناداه الرابع والخامس | L1: 1 | M1: =MAX('بيانات أساسية4'!D5:D44) -> 2 | N1: =MAX('بيانات أساسية4'!D5:D44) -> 2 | O1: =VLOOKUP(D6,اللجان3,4) -> 23
B2: =اساسية!B6 -> مديرية التربية والتعليم | F2: =B2 -> مديرية التربية والتعليم | L2: =L1 -> 1 | M2: =MAX('بيانات أساسية 5'!D5:D44) -> 2 | N2: =MAX('بيانات أساسية 5'!D5:D44) -> 2 | O2: =VLOOKUP(D6,اللجان4,4) -> 28
B3: =اساسية!B8 -> مدرسة الشهيدين الاعدادية | F3: =B3 -> مدرسة الشهيدين الاعدادية
B4: =اساسية!B11 -> الفصل الدراسى الثانى | F4: =B4 -> الفصل الدراسى الثانى | L4: =O1 -> 23
B5: =اساسية!B13 -> 2014/ 2015 م | F5: =B5 -> 2014/ 2015 م | L5: =O2 -> 28
C6: كشف مناداة لجنة رقم | D6: =IF(L1>M1,"",L1) -> 1 | G6: =C6 -> كشف مناداة لجنة رقم | H6: =IF(L2>M2,"",L2) -> 1
C7: ='بيانات أساسية4'!D1 -> الصف الرابع الابتدائى | G7: ='بيانات أساسية 5'!D1 -> الصف الخامس الابتدائى | L7: =MAX(L4:L5) -> 28
B8: م | C8: اسم الطالب | D8: رقم الجلوس | F8: م | G8: اسم الطالب | H8: رقم الجلوس
B9: =IF(D6="","",1) -> 1 | C9: =IF(B9="","",VLOOKUP(D9,data3,2)) -> ابراهيم السيد محمود السيد | D9: =IF(D6="","",VLOOKUP(D6,اللجان3,2)) -> 11 | F9: =IF(H6="","",1) -> 1 | G9: =IF(F9="","",VLOOKUP(H9,data4,2)) -> ابراهيم عبدالله محمد محمد | H9: =IF(H6="","",VLOOKUP(H6,اللجان4,2)) -> 306
B10: =IF(B9="","",IF(B9+1>$O$1,"",B9+1)) -> 2 | C10: ابراهيم ايمن عبدالرحمن عبدالجواد | D10: =IF(B9="","",IF(B10="","",D9+1)) -> 12 | F10: =IF(F9="","",IF(F9+1>$O$2,"",F9+1)) -> 2 | G10: ابراهيم فتحي ابراهيم عطيه | H10: =IF(F9="","",IF(F10="","",H9+1)) -> 307
B11: =IF(B10="","",IF(B10+1>$O$1,"",B10+1)) -> 3 | C11: ابراهيم جمال عبدالغفار مصباح | D11: =IF(B10="","",IF(B11="","",D10+1)) -> 13 | F11: =IF(F10="","",IF(F10+1>$O$2,"",F10+1)) -> 3 | G11: ابراهيم محمد ابراهيم عبده | H11: =IF(F10="","",IF(F11="","",H10+1)) -> 308
B12: 4 | C12: ابراهيم محمد محمد عبدالله | D12: 14 | F12: 4 | G12: ابراهيم محمد احمد فرج | H12: 309
B13: 5 | C13: ابراهيم محمد محمود ابراهيم | D13: 15 | F13: 5 | G13: ابراهيم محمد محمد خليفه | H13: 310
B14: 6 | C14: ابراهيم محمود عيد ابراهيم | D14: 16 | F14: 6 | G14: ابراهيم وائل محمد محمد | H14: 311
B15: 7 | C15: احمد ابراهيم عبدالمنعم علي | D15: 17 | F15: 7 | G15: ابرهيم شريف ابراهيم محمد | H15: 312
B16: 8 | C16: احمد اسامه ادريس مرسي | D16: 18 | F16: 8 | G16: احمد ابراهيم ابراهيم عباس | H16: 313
B17: 9 | C17: احمد اشرف السيد احمد | D17: 19 | F17: 9 | G17: احمد احمد عبدالواحد محمد | H17: 314
B18: 10 | C18: احمد السيد عبدالحميد سليمان | D18: 20 | F18: 10 | G18: احمد الدسوقي عبدربه ابراهيم | H18: 315
B19: 11 | C19: احمد السيد عبدالهادي خطاب | D19: 21 | F19: 11 | G19: احمد السيد رضوان علي | H19: 316
B20: 12 | C20: احمد انور محمد محمد | D20: 22 | F20: 12 | G20: احمد رفاعي شحاتة السيد | H20: 317
B21: 13 | C21: احمد ايهاب عبدالله احمد | D21: 23 | F21: 13 | G21: احمد رفعت علي عبدالسلام | H21: 318
B22: 14 | C22: احمد بسيوني احمد محمد | D22: 24 | F22: 14 | G22: احمد سامي عبدالهادي علي | H22: 319
B23: 15 | C23: احمد حسن علي عبدالجواد | D23: 25 | F23: 15 | G23: احمد سعد محمد سعد | H23: 320
B24: 16 | C24: احمد حسين عبدالستار عويس | D24: 26 | F24: 16 | G24: احمد سعد محمد عبدالخالق | H24: 321
B25: 17 | C25: احمد حماده احمد محمد | D25: 27 | F25: 17 | G25: احمد شوقى محمد عبدالقادر | H25: 322
B26: 18 | C26: احمد حماده احمد محمد حسن | D26: 28 | F26: 18 | G26: احمد صابر حسن ابراهيم يسن | H26: 323
B27: 19 | C27: احمد خالد زكريا عوض | D27: 29 | F27: 19 | G27: احمد عبدالباسط محمد علي | H27: 324
B28: 20 | C28: احمد رمضان محمود عبدالواحد | D28: 30 | F28: 20 | G28: احمد عبدالله صالح احمد | H28: 325
B29: 21 | C29: احمد صبحي قنديل محمد | D29: 31 | F29: 21 | G29: احمد فتحي شعبان عبدالعزيز | H29: =IF(F28="","",IF(F29="","",H28+1)) -> 326
B30: 22 | C30: =IF(B30="","",VLOOKUP(D30,data3,2)) -> احمد صلاح على عبده | D30: =IF(B29="","",IF(B30="","",D29+1)) -> 32 | F30: 22 | G30: =IF(F30="","",VLOOKUP(H30,data4,2)) -> احمد ماهر ابراهيم احمد ابراهيم | H30: =IF(F29="","",IF(F30="","",H29+1)) -> 327
B31: 23 | C31: احمد عبد الله حسين عبيد حجازى | D31: 33 | F31: 23 | G31: احمد ماهر السيد عبدالمنعم | H31: 328
F32: 24 | G32: احمد ماهر رشدي عبدالحميد | H32: 329
F33: 25 | G33: احمد محمد السيد محمد | H33: 330
F34: 26 | G34: خالد سمير عبدالغني مصطفي اسماعيل | H34: 331
F35: 27 | G35: رشاد عصام حسين عبدالله | H35: 332
F36: 28 | G36: زياد ايمن صلاح سعد عبدالله | H36: 333
C39: =IF(B39="","",VLOOKUP(D39,data3,2)) ->  | D39: =IF(B38="","",IF(B39="","",D38+1)) ->  | G39: =IF(F39="","",VLOOKUP(H39,data3,2)) ->  | H39: =IF(F38="","",IF(F39="","",H38+1)) -> 
C40: =IF(B40="","",VLOOKUP(D40,data3,2)) ->  | D40: =IF(B39="","",IF(B40="","",D39+1)) ->  | G40: =IF(F40="","",VLOOKUP(H40,data3,2)) ->  | H40: =IF(F39="","",IF(F40="","",H39+1)) -> 
B42: رئيس الكنترول مدير المدرسة | F42: =B42 -> رئيس الكنترول مدير المدرسة
B43: =اساسية!B10 &" "&اساسية!B9 -> فاتن بسيونى طه رسول | F43: =B43 -> فاتن بسيونى طه رسول

Sheet ارقام الجلوس2
C1: عدد المتقدمين | D1: 0 | E1: =INDEX(O1:O101,MATCH(D1,O1:O101,1)) ->  | I1: 1 | O1: 1
E2: 11 | M2: =INDEX(جلوس2,E2,0) -> 111 | O2: =IF(O1>($D$1-9),"",O1+10) -> 
O3: =IF(O2>($D$1-9),"",O2+10) -> 
B6: =اساسية!B7 -> إدارة الرياض التعليمية | F6: امتحان | G6: =M2 -> 111 | H6: =G6+1 -> 112 | I6: =B6 -> إدارة الرياض التعليمية | M6: امتحان
B7: =اساسية!B8 -> مدرسة الشهيدين الاعدادية | E7: =اساسية!B11 -> الفصل الدراسى الثانى | I7: =B7 -> مدرسة الشهيدين الاعدادية | L7: =E7 -> الفصل الدراسى الثانى
B8: =" رقم جلوس طالب / طالبة "&" "&'بيانات أساسية2'!D1 -> رقم جلوس طالب / طالبة الصف الثانى الابتدائى | I8: =B8 -> رقم جلوس طالب / طالبة الصف الثانى الابتدائى
B9: ="العام الدراسي"&" "&اساسية!B13 -> العام الدراسي 2014/ 2015 م | I9: =B9 -> العام الدراسي 2014/ 2015 م | P9: =E2 -> 11
B10: إسم الطالب : | C10: =(VLOOKUP(G6,data1,2,0)) -> احمد على احمد محمد | I10: إسم الطالب : | J10: =(VLOOKUP(H6,data1,2,0)) -> احمد عمادالدين احمد محمد بيومى | P10: 500
B11: رقم الجلوس : | C11: =(VLOOKUP(G6,data1,1,0)) -> 111 | D11: رقم اللجنة : | E11: =(VLOOKUP(G6,data1,5,0)) -> 1 | I11: رقم الجلوس : | J11: =(VLOOKUP(H6,data1,1,0)) -> 112 | K11: رقم اللجنة : | L11: =(VLOOKUP(H6,data1,5,0)) -> 1
B13: ="رئيس الكنترول :"&" "&اساسية!B10 -> رئيس الكنترول : فاتن بسيونى | I13: =B13 -> رئيس الكنترول : فاتن بسيونى
B14: ="مدير المدرسة :"&" "&اساسية!B9 -> مدير المدرسة : طه رسول | I14: =B14 -> مدير المدرسة : طه رسول
B16: =B6 -> إدارة الرياض التعليمية | F16: امتحان | G16: =H6+1 -> 113 | H16: =G16+1 -> 114 | I16: =B6 -> إدارة الرياض التعليمية | M16: امتحان
B17: =B7 -> مدرسة الشهيدين الاعدادية | E17: =E7 -> الفصل الدراسى الثانى | I17: =B7 -> مدرسة الشهيدين الاعدادية | L17: =E7 -> الفصل الدراسى الثانى
B18: =B8 -> رقم جلوس طالب / طالبة الصف الثانى الابتدائى | I18: =B8 -> رقم جلوس طالب / طالبة الصف الثانى الابتدائى
B19: =B9 -> العام الدراسي 2014/ 2015 م | I19: =B9 -> العام الدراسي 2014/ 2015 م
B20: إسم الطالب : | C20: =(VLOOKUP(G16,data1,2,0)) -> احمد ماهر صبحى طلبه | I20: إسم الطالب : | J20: =(VLOOKUP(H16,data1,2,0)) -> احمد مجدى محمد هنداوي
B21: رقم الجلوس : | C21: =(VLOOKUP(G16,data1,1,0)) -> 113 | D21: رقم اللجنة : | E21: =(VLOOKUP(G16,data1,5,0)) -> 1 | I21: رقم الجلوس : | J21: =(VLOOKUP(H16,data1,1,0)) -> 114 | K21: رقم اللجنة : | L21: =(VLOOKUP(H16,data1,5,0)) -> 1
B23: =B13 -> رئيس الكنترول : فاتن بسيونى | I23: =B13 -> رئيس الكنترول : فاتن بسيونى
B24: =B14 -> مدير المدرسة : طه رسول | I24: =B14 -> مدير المدرسة : طه رسول
B26: =B6 -> إدارة الرياض التعليمية | F26: امتحان | G26: =H16+1 -> 115 | H26: =G26+1 -> 116 | I26: =B6 -> إدارة الرياض التعليمية | M26: امتحان
B27: =B7 -> مدرسة الشهيدين الاعدادية | E27: =E7 -> الفصل الدراسى الثانى | I27: =B7 -> مدرسة الشهيدين الاعدادية | L27: =E7 -> الفصل الدراسى الثانى
B28: =B8 -> رقم جلوس طالب / طالبة الصف الثانى الابتدائى | I28: =B8 -> رقم جلوس طالب / طالبة الصف الثانى الابتدائى
B29: =B9 -> العام الدراسي 2014/ 2015 م | I29: =B9 -> العام الدراسي 2014/ 2015 م
B30: إسم الطالب : | C30: =(VLOOKUP(G26,data1,2,0)) -> احمد محمد ابراهيم يوسف | I30: إسم الطالب : | J30: =(VLOOKUP(H26,data1,2,0)) -> احمد محمد السيد احمد
B31: رقم الجلوس : | C31: =(VLOOKUP(G26,data1,1,0)) -> 115 | D31: رقم اللجنة : | E31: =(VLOOKUP(G26,data1,5,0)) -> 1 | I31: رقم الجلوس : | J31: =(VLOOKUP(H26,data1,1,0)) -> 116 | K31: رقم اللجنة : | L31: =(VLOOKUP(H26,data1,5,0)) -> 1
B33: =B13 -> رئيس الكنترول : فاتن بسيونى | I33: =B13 -> رئيس الكنترول : فاتن بسيونى
B34: =B14 -> مدير المدرسة : طه رسول | I34: =B14 -> مدير المدرسة : طه رسول
B36: =B6 -> إدارة الرياض التعليمية | F36: امتحان | G36: =H26+1 -> 117 | H36: =G36+1 -> 118 | I36: =B6 -> إدارة الرياض التعليمية | M36: امتحان
B37: =B7 -> مدرسة الشهيدين الاعدادية | E37: =E7 -> الفصل الدراسى الثانى | I37: =B7 -> مدرسة الشهيدين الاعدادية | L37: =E7 -> الفصل الدراسى الثانى
B38: =B8 -> رقم جلوس طالب / طالبة الصف الثانى الابتدائى | I38: =B8 -> رقم جلوس طالب / طالبة الصف الثانى الابتدائى
B39: =B9 -> العام الدراسي 2014/ 2015 م | I39: =B9 -> العام الدراسي 2014/ 2015 م
B40: إسم الطالب : | C40: =(VLOOKUP(G36,data1,2,0)) -> احمد مصطفى عاطف ابراهيم | I40: إسم الطالب : | J40: =(VLOOKUP(H36,data1,2,0)) -> احمد ناصر محمد خميس
B41: رقم الجلوس : | C41: =(VLOOKUP(G36,data1,1,0)) -> 117 | D41: رقم اللجنة : | E41: =(VLOOKUP(G36,data1,5,0)) -> 1 | I41: رقم الجلوس : | J41: =(VLOOKUP(H36,data1,1,0)) -> 118 | K41: رقم اللجنة : | L41: =(VLOOKUP(H36,data1,5,0)) -> 1
B43: =B13 -> رئيس الكنترول : فاتن بسيونى | I43: =B13 -> رئيس الكنترول : فاتن بسيونى
B44: =B14 -> مدير المدرسة : طه رسول | I44: =B14 -> مدير المدرسة : طه رسول
B46: =B6 -> إدارة الرياض التعليمية | F46: امتحان | G46: =H36+1 -> 119 | H46: =G46+1 -> 120 | I46: =B6 -> إدارة الرياض التعليمية | M46: امتحان
B47: =B7 -> مدرسة الشهيدين الاعدادية | E47: =E7 -> الفصل الدراسى الثانى | I47: =B7 -> مدرسة الشهيدين الاعدادية | L47: =E7 -> الفصل الدراسى الثانى
B48: =B8 -> رقم جلوس طالب / طالبة الصف الثانى الابتدائى | I48: =B8 -> رقم جلوس طالب / طالبة الصف الثانى الابتدائى
B49: =B9 -> العام الدراسي 2014/ 2015 م | I49: =B9 -> العام الدراسي 2014/ 2015 م
B50: إسم الطالب : | C50: =(VLOOKUP(G46,data1,2,0)) -> احمد هانى محمد السيد | I50: إسم الطالب : | J50: =(VLOOKUP(H46,data1,2,0)) -> احمد هشام جمعه غازي
B51: رقم الجلوس : | C51: =(VLOOKUP(G46,data1,1,0)) -> 119 | D51: رقم اللجنة : | E51: =(VLOOKUP(G46,data1,5,0)) -> 1 | I51: رقم الجلوس : | J51: =(VLOOKUP(H46,data1,1,0)) -> 120 | K51: رقم اللجنة : | L51: =(VLOOKUP(H46,data1,5,0)) -> 1
B53: =B13 -> رئيس الكنترول : فاتن بسيونى | I53: =B13 -> رئيس الكنترول : فاتن بسيونى
B54: =B14 -> مدير المدرسة : طه رسول | I54: =B14 -> مدير المدرسة : طه رسول
O67: =IF(O66>($D$1-9),"",O66+10) -> 

Sheet ارقام الجلوس3
C1: عدد المتقدمين | D1: 0 | E1: =INDEX(O1:O101,MATCH(D1,O1:O101,1)) ->  | I1: 1 | O1: 1
E2: 241 | M2: =INDEX(جلوس3,E2,0) -> 541 | O2: =IF(O1>($D$1-9),"",O1+10) -> 
O3: =IF(O2>($D$1-9),"",O2+10) -> 
B6: =اساسية!B7 -> إدارة الرياض التعليمية | F6: امتحان | G6: =M2 -> 541 | H6: =G6+1 -> 542 | I6: =B6 -> إدارة الرياض التعليمية | M6: امتحان
B7: =اساسية!B8 -> مدرسة الشهيدين الاعدادية | E7: =اساسية!B11 -> الفصل الدراسى الثانى | I7: =B7 -> مدرسة الشهيدين الاعدادية | L7: =E7 -> الفصل الدراسى الثانى
B8: =" رقم جلوس طالب / طالبة "&" "&'بيانات أساسية 3'!D1 -> رقم جلوس طالب / طالبة الصف الثالث الابتدائى | I8: =B8 -> رقم جلوس طالب / طالبة الصف الثالث الابتدائى
B9: ="العام الدراسي"&" "&اساسية!B13 -> العام الدراسي 2014/ 2015 م | I9: =B9 -> العام الدراسي 2014/ 2015 م
B10: إسم الطالب : | C10: =(VLOOKUP(G6,data2,2,0)) -> ندي صابر حمدي عبدالهادي | I10: إسم الطالب : | J10: =(VLOOKUP(H6,data2,2,0)) -> ندي محمد الشحات توفيق
B11: رقم الجلوس : | C11: =(VLOOKUP(G6,data2,1,0)) -> 541 | D11: رقم اللجنة : | E11: =(VLOOKUP(G6,data2,5,0)) -> 10 | I11: رقم الجلوس : | J11: =(VLOOKUP(H6,data2,1,0)) -> 542 | K11: رقم اللجنة : | L11: =(VLOOKUP(H6,data2,5,0)) -> 10
B13: ="رئيس الكنترول :"&" "&اساسية!B10 -> رئيس الكنترول : فاتن بسيونى | I13: =B13 -> رئيس الكنترول : فاتن بسيونى
B14: ="مدير المدرسة :"&" "&اساسية!B9 -> مدير المدرسة : طه رسول | I14: =B14 -> مدير المدرسة : طه رسول
B16: =B6 -> إدارة الرياض التعليمية | F16: امتحان | G16: =H6+1 -> 543 | H16: =G16+1 -> 544 | I16: =B6 -> إدارة الرياض التعليمية | M16: امتحان
B17: =B7 -> مدرسة الشهيدين الاعدادية | E17: =E7 -> الفصل الدراسى الثانى | I17: =B7 -> مدرسة الشهيدين الاعدادية | L17: =E7 -> الفصل الدراسى الثانى
B18: =B8 -> رقم جلوس طالب / طالبة الصف الثالث الابتدائى | I18: =B8 -> رقم جلوس طالب / طالبة الصف الثالث الابتدائى
B19: =B9 -> العام الدراسي 2014/ 2015 م | I19: =B9 -> العام الدراسي 2014/ 2015 م
B20: إسم الطالب : | C20: =(VLOOKUP(G16,data2,2,0)) -> نهي هاني ابراهيم هلال | I20: إسم الطالب : | J20: =(VLOOKUP(H16,data2,2,0)) -> نور ابراهيم فتح الله عبدالله
B21: رقم الجلوس : | C21: =(VLOOKUP(G16,data1,1,0)) ->  | D21: رقم اللجنة : | E21: =(VLOOKUP(G16,data1,5,0)) ->  | I21: رقم الجلوس : | J21: =(VLOOKUP(H16,data2,1,0)) -> 544 | K21: رقم اللجنة : | L21: =(VLOOKUP(H16,data2,5,0)) -> 10
B23: =B13 -> رئيس الكنترول : فاتن بسيونى | I23: =B13 -> رئيس الكنترول : فاتن بسيونى
B24: =B14 -> مدير المدرسة : طه رسول | I24: =B14 -> مدير المدرسة : طه رسول
B26: =B6 -> إدارة الرياض التعليمية | F26: امتحان | G26: =H16+1 -> 545 | H26: =G26+1 -> 546 | I26: =B6 -> إدارة الرياض التعليمية | M26: امتحان
B27: =B7 -> مدرسة الشهيدين الاعدادية | E27: =E7 -> الفصل الدراسى الثانى | I27: =B7 -> مدرسة الشهيدين الاعدادية | L27: =E7 -> الفصل الدراسى الثانى
B28: =B8 -> رقم جلوس طالب / طالبة الصف الثالث الابتدائى | I28: =B8 -> رقم جلوس طالب / طالبة الصف الثالث الابتدائى
B29: =B9 -> العام الدراسي 2014/ 2015 م | I29: =B9 -> العام الدراسي 2014/ 2015 م
B30: إسم الطالب : | C30: =(VLOOKUP(G26,data2,2,0)) -> نور الهدي احمد لطفي عبدالله | I30: إسم الطالب : | J30: =(VLOOKUP(H26,data2,2,0)) -> نور خالد احمد ابوزيد
B31: رقم الجلوس : | C31: =(VLOOKUP(G26,data2,1,0)) -> 545 | D31: رقم اللجنة : | E31: =(VLOOKUP(G26,data2,5,0)) -> 10 | I31: رقم الجلوس : | J31: =(VLOOKUP(H26,data2,1,0)) -> 546 | K31: رقم اللجنة : | L31: =(VLOOKUP(H26,data2,5,0)) -> 10
B33: =B13 -> رئيس الكنترول : فاتن بسيونى | I33: =B13 -> رئيس الكنترول : فاتن بسيونى
B34: =B14 -> مدير المدرسة : طه رسول | I34: =B14 -> مدير المدرسة : طه رسول
B36: =B6 -> إدارة الرياض التعليمية | F36: امتحان | G36: =H26+1 -> 547 | H36: =G36+1 -> 548 | I36: =B6 -> إدارة الرياض التعليمية | M36: امتحان
B37: =B7 -> مدرسة الشهيدين الاعدادية | E37: =E7 -> الفصل الدراسى الثانى | I37: =B7 -> مدرسة الشهيدين الاعدادية | L37: =E7 -> الفصل الدراسى الثانى
B38: =B8 -> رقم جلوس طالب / طالبة الصف الثالث الابتدائى | I38: =B8 -> رقم جلوس طالب / طالبة الصف الثالث الابتدائى
B39: =B9 -> العام الدراسي 2014/ 2015 م | I39: =B9 -> العام الدراسي 2014/ 2015 م
B40: إسم الطالب : | C40: =(VLOOKUP(G36,data2,2,0)) -> نور ماهر محمد هليل | I40: إسم الطالب : | J40: =(VLOOKUP(H36,data2,2,0)) -> نورهان السيد سمير عبد الوهاب محمد
B41: رقم الجلوس : | C41: =(VLOOKUP(G36,data2,1,0)) -> 547 | D41: رقم اللجنة : | E41: =(VLOOKUP(G36,data2,5,0)) -> 10 | I41: رقم الجلوس : | J41: =(VLOOKUP(H36,data2,1,0)) -> 548 | K41: رقم اللجنة : | L41: =(VLOOKUP(H36,data2,5,0)) -> 10
B43: =B13 -> رئيس الكنترول : فاتن بسيونى | I43: =B13 -> رئيس الكنترول : فاتن بسيونى
B44: =B14 -> مدير المدرسة : طه رسول | I44: =B14 -> مدير المدرسة : طه رسول
B46: =B6 -> إدارة الرياض التعليمية | F46: امتحان | G46: =H36+1 -> 549 | H46: =G46+1 -> 550 | I46: =B6 -> إدارة الرياض التعليمية | M46: امتحان
B47: =B7 -> مدرسة الشهيدين الاعدادية | E47: =E7 -> الفصل الدراسى الثانى | I47: =B7 -> مدرسة الشهيدين الاعدادية | L47: =E7 -> الفصل الدراسى الثانى
B48: =B8 -> رقم جلوس طالب / طالبة الصف الثالث الابتدائى | I48: =B8 -> رقم جلوس طالب / طالبة الصف الثالث الابتدائى
B49: =B9 -> العام الدراسي 2014/ 2015 م | I49: =B9 -> العام الدراسي 2014/ 2015 م
B50: إسم الطالب : | C50: =(VLOOKUP(G46,data2,2,0)) -> نورهان ياسر حسن حسين | I50: إسم الطالب : | J50: =(VLOOKUP(H46,data2,2,0)) -> هاجر ايمن عبدالرحمن عبدالجواد
B51: رقم الجلوس : | C51: =(VLOOKUP(G46,data2,1,0)) -> 549 | D51: رقم اللجنة : | E51: =(VLOOKUP(G46,data2,5,0)) -> 10 | I51: رقم الجلوس : | J51: =(VLOOKUP(H46,data2,1,0)) -> 550 | K51: رقم اللجنة : | L51: =(VLOOKUP(H46,data2,5,0)) -> 10
B53: =B13 -> رئيس الكنترول : فاتن بسيونى | I53: =B13 -> رئيس الكنترول : فاتن بسيونى
B54: =B14 -> مدير المدرسة : طه رسول | I54: =B14 -> مدير المدرسة : طه رسول
O67: =IF(O66>($D$1-9),"",O66+10) -> 

Sheet ارقام الجلوس4
C1: عدد المتقدمين | D1: 0 | E1: =INDEX(O1:O101,MATCH(D1,O1:O101,1)) ->  | I1: 1 | O1: 1
E2: 21 | M2: =INDEX(جلوس4,E2,0) -> 31 | O2: =IF(O1>($D$1-9),"",O1+10) -> 
O3: =IF(O2>($D$1-9),"",O2+10) -> 
B6: =اساسية!B7 -> إدارة الرياض التعليمية | F6: امتحان | G6: =M2 -> 31 | H6: =G6+1 -> 32 | I6: =B6 -> إدارة الرياض التعليمية | M6: امتحان
B7: =اساسية!B8 -> مدرسة الشهيدين الاعدادية | E7: =اساسية!B11 -> الفصل الدراسى الثانى | I7: =B7 -> مدرسة الشهيدين الاعدادية | L7: =E7 -> الفصل الدراسى الثانى
B8: =" رقم جلوس طالب / طالبة "&" "&'بيانات أساسية4'!D1 -> رقم جلوس طالب / طالبة الصف الرابع الابتدائى | I8: =B8 -> رقم جلوس طالب / طالبة الصف الرابع الابتدائى
B9: ="العام الدراسي"&" "&اساسية!B13 -> العام الدراسي 2014/ 2015 م | I9: =B9 -> العام الدراسي 2014/ 2015 م
B10: إسم الطالب : | C10: =(VLOOKUP(G6,data3,2,0)) -> احمد صبحي قنديل محمد | I10: إسم الطالب : | J10: =(VLOOKUP(H6,data3,2,0)) -> احمد صلاح على عبده
B11: رقم الجلوس : | C11: =(VLOOKUP(G6,data3,1,0)) -> 31 | D11: رقم اللجنة : | E11: =(VLOOKUP(G6,data3,5,0)) -> 1 | I11: رقم الجلوس : | J11: =(VLOOKUP(H6,data3,1,0)) -> 32 | K11: رقم اللجنة : | L11: =(VLOOKUP(H6,data3,5,0)) -> 1
B13: ="رئيس الكنترول :"&" "&اساسية!B10 -> رئيس الكنترول : فاتن بسيونى | I13: =B13 -> رئيس الكنترول : فاتن بسيونى
B14: ="مدير المدرسة :"&" "&اساسية!B9 -> مدير المدرسة : طه رسول | I14: =B14 -> مدير المدرسة : طه رسول
B16: =B6 -> إدارة الرياض التعليمية | F16: امتحان | G16: =H6+1 -> 33 | H16: =G16+1 -> 34 | I16: =B6 -> إدارة الرياض التعليمية | M16: امتحان
B17: =B7 -> مدرسة الشهيدين الاعدادية | E17: =E7 -> الفصل الدراسى الثانى | I17: =B7 -> مدرسة الشهيدين الاعدادية | L17: =E7 -> الفصل الدراسى الثانى
B18: =B8 -> رقم جلوس طالب / طالبة الصف الرابع الابتدائى | I18: =B8 -> رقم جلوس طالب / طالبة الصف الرابع الابتدائى
B19: =B9 -> العام الدراسي 2014/ 2015 م | I19: =B9 -> العام الدراسي 2014/ 2015 م
B20: إسم الطالب : | C20: =(VLOOKUP(G16,data3,2,0)) -> احمد عبد الله حسين عبيد حجازى | I20: إسم الطالب : | J20: =(VLOOKUP(H16,data3,2,0)) -> احمد عبدالصمد زكي ابراهيم
B21: رقم الجلوس : | C21: =(VLOOKUP(G16,data3,1,0)) -> 33 | D21: رقم اللجنة : | E21: =(VLOOKUP(G16,data3,5,0)) -> 1 | I21: رقم الجلوس : | J21: =(VLOOKUP(H16,data3,1,0)) -> 34 | K21: رقم اللجنة : | L21: =(VLOOKUP(H16,data3,5,0)) -> 2
B23: =B13 -> رئيس الكنترول : فاتن بسيونى | I23: =B13 -> رئيس الكنترول : فاتن بسيونى
B24: =B14 -> مدير المدرسة : طه رسول | I24: =B14 -> مدير المدرسة : طه رسول
B26: =B6 -> إدارة الرياض التعليمية | F26: امتحان | G26: =H16+1 -> 35 | H26: =G26+1 -> 36 | I26: =B6 -> إدارة الرياض التعليمية | M26: امتحان
B27: =B7 -> مدرسة الشهيدين الاعدادية | E27: =E7 -> الفصل الدراسى الثانى | I27: =B7 -> مدرسة الشهيدين الاعدادية | L27: =E7 -> الفصل الدراسى الثانى
B28: =B8 -> رقم جلوس طالب / طالبة الصف الرابع الابتدائى | I28: =B8 -> رقم جلوس طالب / طالبة الصف الرابع الابتدائى
B29: =B9 -> العام الدراسي 2014/ 2015 م | I29: =B9 -> العام الدراسي 2014/ 2015 م
B30: إسم الطالب : | C30: =(VLOOKUP(G26,data3,2,0)) -> احمد عبدالعال عبدالمجيد ندا | I30: إسم الطالب : | J30: =(VLOOKUP(H26,data3,2,0)) -> احمد عبدالكريم السيد عبدالنبي
B31: رقم الجلوس : | C31: =(VLOOKUP(G26,data3,1,0)) -> 35 | D31: رقم اللجنة : | E31: =(VLOOKUP(G26,data3,5,0)) -> 2 | I31: رقم الجلوس : | J31: =(VLOOKUP(H26,data3,1,0)) -> 36 | K31: رقم اللجنة : | L31: =(VLOOKUP(H26,data3,5,0)) -> 2
B33: =B13 -> رئيس الكنترول : فاتن بسيونى | I33: =B13 -> رئيس الكنترول : فاتن بسيونى
B34: =B14 -> مدير المدرسة : طه رسول | I34: =B14 -> مدير المدرسة : طه رسول
B36: =B6 -> إدارة الرياض التعليمية | F36: امتحان | G36: =H26+1 -> 37 | H36: =G36+1 -> 38 | I36: =B6 -> إدارة الرياض التعليمية | M36: امتحان
B37: =B7 -> مدرسة الشهيدين الاعدادية | E37: =E7 -> الفصل الدراسى الثانى | I37: =B7 -> مدرسة الشهيدين الاعدادية | L37: =E7 -> الفصل الدراسى الثانى
B38: =B8 -> رقم جلوس طالب / طالبة الصف الرابع الابتدائى | I38: =B8 -> رقم جلوس طالب / طالبة الصف الرابع الابتدائى
B39: =B9 -> العام الدراسي 2014/ 2015 م | I39: =B9 -> العام الدراسي 2014/ 2015 م
B40: إسم الطالب : | C40: =(VLOOKUP(G36,data3,2,0)) -> احمد عصام احمد عبد الله | I40: إسم الطالب : | J40: =(VLOOKUP(H36,data3,2,0)) -> احمد عماد عبدالفتاح ابراهيم
B41: رقم الجلوس : | C41: =(VLOOKUP(G36,data3,1,0)) -> 37 | D41: رقم اللجنة : | E41: =(VLOOKUP(G36,data3,5,0)) -> 2 | I41: رقم الجلوس : | J41: =(VLOOKUP(H36,data3,1,0)) -> 38 | K41: رقم اللجنة : | L41: =(VLOOKUP(H36,data3,5,0)) -> 2
B43: =B13 -> رئيس الكنترول : فاتن بسيونى | I43: =B13 -> رئيس الكنترول : فاتن بسيونى
B44: =B14 -> مدير المدرسة : طه رسول | I44: =B14 -> مدير المدرسة : طه رسول
B46: =B6 -> إدارة الرياض التعليمية | F46: امتحان | G46: =H36+1 -> 39 | H46: =G46+1 -> 40 | I46: =B6 -> إدارة الرياض التعليمية | M46: امتحان
B47: =B7 -> مدرسة الشهيدين الاعدادية | E47: =E7 -> الفصل الدراسى الثانى | I47: =B7 -> مدرسة الشهيدين الاعدادية | L47: =E7 -> الفصل الدراسى الثانى
B48: =B8 -> رقم جلوس طالب / طالبة الصف الرابع الابتدائى | I48: =B8 -> رقم جلوس طالب / طالبة الصف الرابع الابتدائى
B49: =B9 -> العام الدراسي 2014/ 2015 م | I49: =B9 -> العام الدراسي 2014/ 2015 م
B50: إسم الطالب : | C50: =(VLOOKUP(G46,data3,2,0)) -> احمد فؤاد احمد محمد | I50: إسم الطالب : | J50: =(VLOOKUP(H46,data3,2,0)) -> احمد محمد ابراهيم حسين
B51: رقم الجلوس : | C51: =(VLOOKUP(G46,data3,1,0)) -> 39 | D51: رقم اللجنة : | E51: =(VLOOKUP(G46,data3,5,0)) -> 2 | I51: رقم الجلوس : | J51: =(VLOOKUP(H46,data3,1,0)) -> 40 | K51: رقم اللجنة : | L51: =(VLOOKUP(H46,data3,5,0)) -> 2
B53: =B13 -> رئيس الكنترول : فاتن بسيونى | I53: =B13 -> رئيس الكنترول : فاتن بسيونى
B54: =B14 -> مدير المدرسة : طه رسول | I54: =B14 -> مدير المدرسة : طه رسول
O67: =IF(O66>($D$1-9),"",O66+10) -> 

Sheet ارقام الجلوس5
C1: عدد المتقدمين | D1: 0 | E1: =INDEX(O1:O101,MATCH(D1,O1:O101,1)) ->  | I1: 1 | O1: 1
E2: 21 | M2: =INDEX(جلوس5,E2,0) -> 326 | O2: =IF(O1>($D$1-9),"",O1+10) -> 
O3: =IF(O2>($D$1-9),"",O2+10) -> 
B6: =اساسية!B7 -> إدارة الرياض التعليمية | F6: امتحان | G6: =M2 -> 326 | H6: =G6+1 -> 327 | I6: =B6 -> إدارة الرياض التعليمية | M6: امتحان
B7: =اساسية!B8 -> مدرسة الشهيدين الاعدادية | E7: =اساسية!B11 -> الفصل الدراسى الثانى | I7: =B7 -> مدرسة الشهيدين الاعدادية | L7: =E7 -> الفصل الدراسى الثانى
B8: =" رقم جلوس طالب / طالبة "&" "&'بيانات أساسية 5'!D1 -> رقم جلوس طالب / طالبة الصف الخامس الابتدائى | I8: =B8 -> رقم جلوس طالب / طالبة الصف الخامس الابتدائى
B9: ="العام الدراسي"&" "&اساسية!B13 -> العام الدراسي 2014/ 2015 م | I9: =B9 -> العام الدراسي 2014/ 2015 م
B10: إسم الطالب : | C10: =(VLOOKUP(G6,data4,2,0)) -> احمد فتحي شعبان عبدالعزيز | I10: إسم الطالب : | J10: =(VLOOKUP(H6,data4,2,0)) -> احمد ماهر ابراهيم احمد ابراهيم
B11: رقم الجلوس : | C11: =(VLOOKUP(G6,data4,1,0)) -> 326 | D11: رقم اللجنة : | E11: =(VLOOKUP(G6,data4,5,0)) -> 1 | I11: رقم الجلوس : | J11: =(VLOOKUP(H6,data4,1,0)) -> 327 | K11: رقم اللجنة : | L11: =(VLOOKUP(H6,data4,5,0)) -> 1
B13: ="رئيس الكنترول :"&" "&اساسية!B10 -> رئيس الكنترول : فاتن بسيونى | I13: =B13 -> رئيس الكنترول : فاتن بسيونى
B14: ="مدير المدرسة :"&" "&اساسية!B9 -> مدير المدرسة : طه رسول | I14: =B14 -> مدير المدرسة : طه رسول
B16: =B6 -> إدارة الرياض التعليمية | F16: امتحان | G16: =H6+1 -> 328 | H16: =G16+1 -> 329 | I16: =B6 -> إدارة الرياض التعليمية | M16: امتحان
B17: =B7 -> مدرسة الشهيدين الاعدادية | E17: =E7 -> الفصل الدراسى الثانى | I17: =B7 -> مدرسة الشهيدين الاعدادية | L17: =E7 -> الفصل الدراسى الثانى
B18: =B8 -> رقم جلوس طالب / طالبة الصف الخامس الابتدائى | I18: =B8 -> رقم جلوس طالب / طالبة الصف الخامس الابتدائى
B19: =B9 -> العام الدراسي 2014/ 2015 م | I19: =B9 -> العام الدراسي 2014/ 2015 م
B20: إسم الطالب : | C20: =(VLOOKUP(G16,data4,2,0)) -> احمد ماهر السيد عبدالمنعم | I20: إسم الطالب : | J20: =(VLOOKUP(H16,data4,2,0)) -> احمد ماهر رشدي عبدالحميد
B21: رقم الجلوس : | C21: =(VLOOKUP(G16,data4,1,0)) -> 328 | D21: رقم اللجنة : | E21: =(VLOOKUP(G16,data4,5,0)) -> 1 | I21: رقم الجلوس : | J21: =(VLOOKUP(H16,data4,1,0)) -> 329 | K21: رقم اللجنة : | L21: =(VLOOKUP(H16,data4,5,0)) -> 1
B23: =B13 -> رئيس الكنترول : فاتن بسيونى | I23: =B13 -> رئيس الكنترول : فاتن بسيونى
B24: =B14 -> مدير المدرسة : طه رسول | I24: =B14 -> مدير المدرسة : طه رسول
B26: =B6 -> إدارة الرياض التعليمية | F26: امتحان | G26: =H16+1 -> 330 | H26: =G26+1 -> 331 | I26: =B6 -> إدارة الرياض التعليمية | M26: امتحان
B27: =B7 -> مدرسة الشهيدين الاعدادية | E27: =E7 -> الفصل الدراسى الثانى | I27: =B7 -> مدرسة الشهيدين الاعدادية | L27: =E7 -> الفصل الدراسى الثانى
B28: =B8 -> رقم جلوس طالب / طالبة الصف الخامس الابتدائى | I28: =B8 -> رقم جلوس طالب / طالبة الصف الخامس الابتدائى
B29: =B9 -> العام الدراسي 2014/ 2015 م | I29: =B9 -> العام الدراسي 2014/ 2015 م
B30: إسم الطالب : | C30: =(VLOOKUP(G26,data4,2,0)) -> احمد محمد السيد محمد | I30: إسم الطالب : | J30: =(VLOOKUP(H26,data4,2,0)) -> خالد سمير عبدالغني مصطفي اسماعيل
B31: رقم الجلوس : | C31: =(VLOOKUP(G26,data4,1,0)) -> 330 | D31: رقم اللجنة : | E31: =(VLOOKUP(G26,data4,5,0)) -> 1 | I31: رقم الجلوس : | J31: =(VLOOKUP(H26,data4,1,0)) -> 331 | K31: رقم اللجنة : | L31: =(VLOOKUP(H26,data4,5,0)) -> 1
B33: =B13 -> رئيس الكنترول : فاتن بسيونى | I33: =B13 -> رئيس الكنترول : فاتن بسيونى
B34: =B14 -> مدير المدرسة : طه رسول | I34: =B14 -> مدير المدرسة : طه رسول
B36: =B6 -> إدارة الرياض التعليمية | F36: امتحان | G36: =H26+1 -> 332 | H36: =G36+1 -> 333 | I36: =B6 -> إدارة الرياض التعليمية | M36: امتحان
B37: =B7 -> مدرسة الشهيدين الاعدادية | E37: =E7 -> الفصل الدراسى الثانى | I37: =B7 -> مدرسة الشهيدين الاعدادية | L37: =E7 -> الفصل الدراسى الثانى
B38: =B8 -> رقم جلوس طالب / طالبة الصف الخامس الابتدائى | I38: =B8 -> رقم جلوس طالب / طالبة الصف الخامس الابتدائى
B39: =B9 -> العام الدراسي 2014/ 2015 م | I39: =B9 -> العام الدراسي 2014/ 2015 م
B40: إسم الطالب : | C40: =(VLOOKUP(G36,data4,2,0)) -> رشاد عصام حسين عبدالله | I40: إسم الطالب : | J40: =(VLOOKUP(H36,data4,2,0)) -> زياد ايمن صلاح سعد عبدالله
B41: رقم الجلوس : | C41: =(VLOOKUP(G36,data4,1,0)) -> 332 | D41: رقم اللجنة : | E41: =(VLOOKUP(G36,data4,5,0)) -> 1 | I41: رقم الجلوس : | J41: =(VLOOKUP(H36,data4,1,0)) -> 333 | K41: رقم اللجنة : | L41: =(VLOOKUP(H36,data4,5,0)) -> 1
B43: =B13 -> رئيس الكنترول : فاتن بسيونى | I43: =B13 -> رئيس الكنترول : فاتن بسيونى
B44: =B14 -> مدير المدرسة : طه رسول | I44: =B14 -> مدير المدرسة : طه رسول
B46: =B6 -> إدارة الرياض التعليمية | F46: امتحان | G46: =H36+1 -> 334 | H46: =G46+1 -> 335 | I46: =B6 -> إدارة الرياض التعليمية | M46: امتحان
B47: =B7 -> مدرسة الشهيدين الاعدادية | E47: =E7 -> الفصل الدراسى الثانى | I47: =B7 -> مدرسة الشهيدين الاعدادية | L47: =E7 -> الفصل الدراسى الثانى
B48: =B8 -> رقم جلوس طالب / طالبة الصف الخامس الابتدائى | I48: =B8 -> رقم جلوس طالب / طالبة الصف الخامس الابتدائى
B49: =B9 -> العام الدراسي 2014/ 2015 م | I49: =B9 -> العام الدراسي 2014/ 2015 م
B50: إسم الطالب : | C50: =(VLOOKUP(G46,data4,2,0)) -> زياد خيري منير اسماعيل | I50: إسم الطالب : | J50: =(VLOOKUP(H46,data4,2,0)) -> زياد رضا وهبه محمد وهبه
B51: رقم الجلوس : | C51: =(VLOOKUP(G46,data4,1,0)) -> 334 | D51: رقم اللجنة : | E51: =(VLOOKUP(G46,data4,5,0)) -> 2 | I51: رقم الجلوس : | J51: =(VLOOKUP(H46,data4,1,0)) -> 335 | K51: رقم اللجنة : | L51: =(VLOOKUP(H46,data4,5,0)) -> 2
B53: =B13 -> رئيس الكنترول : فاتن بسيونى | I53: =B13 -> رئيس الكنترول : فاتن بسيونى
B54: =B14 -> مدير المدرسة : طه رسول | I54: =B14 -> مدير المدرسة : طه رسول
O67: =IF(O66>($D$1-9),"",O66+10) -> 
